{"text_format":"1","workbook":"xlsx","n_sheets":6,"sheets":["INSTRUCCIONES DE USO","FORMULARIOS","BASE PRINCIPAL","BD SECUNDARIA","BD D-806","PLANTILLA"],"not_rendered":{"charts":0,"images":4,"macros":1,"external_links":0,"defined_names":20,"comments":0,"pivot_tables":0},"unopened":[],"bounds":{"document_bytes":16777216,"sheet_cells":100000,"rows_first":2000,"rows_last":500,"rows_between":2000,"halvings":0,"cell_chars":16384,"cell_head_chars":4096},"cells_cut":0,"cells_raw":0,"read":"whole","date_system":"1900"}

{"sheet":"INSTRUCCIONES DE USO","index":0,"n_rows":11,"n_cols":2,"rows_kept":11,"cut":false,"hidden":false,"merged":[[10,1,10,2],[2,1,2,2],[1,1,1,2],[3,1,3,2],[4,1,4,2],[6,1,6,2],[7,1,7,2],[9,1,9,2],[5,1,5,2],[8,1,8,2]]}
[]
[null,"INSTRUCTIVO DE DILIGENCIAMIENTO Y FUNCIUONAMIENTO DEL CUADRO INTERNO PARA CONTROL DE TERMINOS"]
[]
[null,"\nEl presente instructivo tiene como finalidad describir el paso a paso de manera detallada, del diligenciamiento, uso y funcionamiento de la base principal de demandas del Grupo de Trabajo de Gestión Judicial; por lo que hay que tener en cuenta que el diligenciamiento de la base es realizada por el equipo administrativo, de acuerdo con el proceso de notificación, radicación y asignación.\n\nLa base se compone de las siguientes pestañas\n\n1. Formularios: En esta pestaña se encuentran cinco (5) formularios para ingresar la información, organizado según las etapas internas del proceso administrativo.\n2. Base Principal: Aquí se registra y cruza la información actualizada proveniente de los formularios, permitiendo un seguimiento de manera organizada, estandarizada e inalterable.\n3. BD Secundaria: Esta pestaña recibe la información complementaria de los procesos de manera separada pero estandarizada, alimentando la base principal sin importar el orden de ingreso, ni afectando la información previamente registrada.\n4. BD D-806 (Decreto 806): Se utiliza únicamente para hacer un seguimiento de la información relativa a este tipo de demandas.\n5. Plantilla de Información: Maneja la estandarización necesaria para que la base principal y los formularios funcionen correctamente, está pestaña se encuentra oculta y bloqueada para evitar alteración en la información.\n"]
[null,"Observaciones y aspectos técnicos para tener en cuenta durante el diligenciamiento:"]
[null,"1. En la base principal y en el formulario, los números del proceso siempre se registran con el número de primera instancia, sin que influya la instancia en la que se encuentre, quiere decir que, los últimos dos números del código de 23 dígitos del proceso, siempre serán terminados en “00”.\n\n2. Los formularios, cuentan con una celda de conteo de dígitos, junto a la primera casilla de diligenciamiento del número de proceso, con el fin de facilitar la identificación de falta o exceso de números en el número judicial del proceso (23 dígitos).\n\n3. La base principal y algunos espacios específicos del formulario se encuentran bloqueados con el fin de garantizar la integridad y permanencia de la información y de la estructura de la base de datos, este bloqueo solamente puede ser modificado con las respectivas contraseñas de desbloqueo del archivo.\n\n4. En la base secundaria se encuentran las diferentes tablas de registro de información que se diligencia en los formularios, con el fin de facilitar la revisión, corrección o supresión de datos erróneos, acciones que posteriormente se evidencian de manera automática en la base principal.\n\n5. En los formularios existen restricciones tanto en las listas desplegables, así como en el diligenciamiento y uso de los botones cuando la información está incompleta; lo cual genera un mensaje de advertencia de datos faltantes o un mensaje de registro exitoso cuando el diligenciamiento de la información se hace correctamente.\n\n6. Se debe tener en cuenta que la persona encargada de la administración del cuadro interno para control de términos, será la persona que defina las contraseñas de acceso por rangos y desbloqueos generales de las pestañas del archivo; así como la actualización de datos estandarizada en la pestaña “PLANTILLA”.\n\n7. Tener en cuenta las configuraciones autorizadas en la función “Proteger” de Excel, para realizar el bloqueo y desbloqueo de las pestañas que lo requieran."]
[null,"Diligenciamiento conforme al esquema de proceso administrativo"]
[null,"Etapa Prejudicial:"]
[null,"Para darle alcance al debido proceso en la etapa de notificación de parte del demandante a la Entidad, dicha notificación se registra en la pestaña BD-806.C11"]
[null,"Etapa Judicial:"]
[null,"Esta etapa consta de la debida notificación por parte del despacho judicial a la Entidad, del expediente y admisión del proceso, a través del correo notificaciones judiciales.\n\n1. Posterior a la notificación, se solicita la radicación en el sistema de trámites se copia en el correo a los dos administrativos encargados de la asignación y diligenciamiento del apoderado; así como el registro de información complementaria y notificación a la Delegatura.\n\n2. Ingresar al cuadro interno para control de términos – pestaña “BASE PRINCIPAL”, para desbloquear el documento: i) Dar doble clic en cualquiera de las primeras filas de la tabla; ii) ingresar la contraseña de desbloqueo de rango y iii) finalmente dirigirse a la pestaña  “FORMULARIO”\n\n3. Registrar la información básica de la demanda en el “Formulario Ingreso de Procesos Admitidos”, utilizando la información de las listas desplegables y diligenciando el mismo día de recepción de la demanda toda la información solicitada en el formulario. \n\n4. Adicionalmente, se procede a hacer el estudio del tema y la Delegatura para que la Coordinación realice la asignación y el técnico administrativo designado informe por correo electrónico al abogado, realice la respectiva asignación en el sistema de trámites y diligencie el formulario “Registro de apoderado SIC-Demandas”\n\n5. Una vez en el sistema de trámites interno se visualice la radicación de la demanda, se debe registrar la información solicitada en el formulario: “Datos complementarios del Sistema de Trámites” en el botón “Registro primer radicado”\nNota: De ser el caso que en el sistema de trámites allá radicados acumulados al radicado padre, estos se deben registrar en el formulario: “Datos complementarios del Sistema de Trámites” en el botón “Registro acumulados”\n\n6. Conforme las actuaciones del proceso, se registra la resolución de la medida cautelar (si aplica) en el formulario “Decisión de medida cautelar” y cuando se haya creado el proceso en el Sistema EKOGUI se registra el ID de EKOGUI en el formulario “Registro de apoderado SIC-Demandas” - botón ID EKOGUI.\n\n7. El diligenciamiento de las actuaciones de una demanda finaliza con el registro de  las sentencias en el formulario: “Registro de Sentencias”, en este caso las sentencias de primera instancia se registran en el botón “Sentencia” y las de segunda instancia o Única Instancia en el botón respectivo.\n"]

{"sheet":"FORMULARIOS","index":1,"n_rows":84,"n_cols":22,"rows_kept":84,"cut":false,"hidden":false,"merged":[[39,14,39,15],[41,14,41,15],[77,14,77,15],[83,14,83,15],[79,12,81,17],[63,3,63,8],[63,12,63,17],[83,5,83,6],[75,5,75,6],[73,5,73,6],[71,5,71,6],[69,5,69,6],[67,5,67,6],[65,5,65,6],[65,14,65,15],[67,14,67,15],[9,2,35,2],[35,5,35,6],[33,5,33,6],[27,5,27,6],[25,5,25,6],[23,5,23,6],[21,5,21,6],[11,5,11,6],[9,5,9,6],[7,3,7,8],[75,14,75,15],[49,5,49,6],[51,5,51,6],[53,5,53,6],[19,14,19,15],[46,3,46,8],[57,5,57,6],[59,5,59,6],[55,5,55,6],[55,14,55,15],[53,14,53,15],[51,14,51,15],[49,14,49,15],[46,12,46,16],[7,12,7,17],[41,5,41,6],[1,6,1,16],[39,5,39,6],[37,5,37,6],[3,6,3,16],[37,14,37,15],[35,14,35,15],[33,14,33,15],[25,14,25,15],[23,14,23,15],[11,14,11,15],[9,14,9,15],[19,5,19,6],[31,14,31,15],[21,14,21,15],[29,5,29,6]]}
[]
[null,null,null,null,null,null,"SUPERINTENDENCIA DE INDUSTRIA Y COMERCIO - SIC\nOFICINA DE GESTION JUDICIAL",null,null,null,null,null,null,null,null,null,null,null,null,null,null,{"$f":"TODAY()","v":"2024-09-19"}]
[]
[null,null,null,null,null,null,"FORMULARIO DE REGISTRO DE  DEMANDAS EN  CONTRA DE LA SIC"]
[]
[]
[]
[null,null,null,"FORMULARIO INGRESO DE PROCESOS ADMITIDOS",null,null,null,null,null,null,null,null,"FORMULARIO INGRESO DE PROCESOS POR D-806"]
[]
[null,null,null,"TIPO DE DEMANDA",null,null,"PROCESOS_JUDICIALES_ORDINARIOS",null,null,null,null,null,"TIPO DE DEMANDA"]
[]
[null,null,null,"TIPO DE ACCIÓN",null,null,"Nulidad y Restablecimiento del Derecho",null,null,null,null,null,"TIPO DE ACCIÓN"]
[]
[null,null,null,"AÑO",null,null,null,null,null,null,null,null,"AÑO"]
[]
[null,null,null,"MES",null,null,null,null,null,null,null,null,"MES"]
[]
[null,null,null,"DIA",null,null,null,null,null,null,null,null,"DIA"]
[]
[null,null,null,"FECHA AUTO ADMISORIO",null,{"$f":"CONCATENATE(F14,\"/\",F16,\"/\",F18)","v":"//"},null,null,null,null,null,null,"FECHA NOTIFICACION",null,{"$f":"V2","v":"2024-09-19"}]
[]
[null,null,null,"No. PROCESO",null,null,null,null,{"$f":"LEN(F22)","v":0},null,null,null,"No. PROCESO",null,""]
[]
[null,null,null,"DESPACHO DE ORIGEN",null,null,null,null,null,null,null,null,"DESPACHO  ENVIADO"]
[]
[null,null,null,"TIPO DE NOTIFICACION",null,null,"CORREO ELECTRONICO",null,null,null,null,null,"TIPO DE NOTIFICACION"]
[]
[null,null,null,"FECHA NOTIFICACION CORREO",null,{"$f":"TODAY()","v":"2024-09-19"},null,null,null,null,null,null,"DEMANDADA LA SIC"]
[]
[null,null,null,"DEMANDADA LA SIC",null,null,null,null,null,null,null,null,"VINCULADA LA SIC",null,{"$f":"IF(O28=\"SI\",\"NO\",IF(O28=\"NO\",\"SI\",\"NA\"))","v":"NA"}]
[]
[null,null,null,"VINCULADA LA SIC",null,{"$f":"IF(F30=\"SI\",\"NO\",IF(F30=\"NO\",\"SI\",\"NA\"))","v":"NA"},null,null,null,null,null,null,"DEMANDANTE"]
[]
[null,null,null,"DEMANDANTE",null,null,null,null,null,null,null,null,"IDENTIFICACIÓN"]
[]
[null,null,null,"IDENTIFICACIÓN",null,null,null,null,null,null,null,null,"VINCULADOS"]
[]
[null,null,null,"VINCULADOS",null,null,null,null,null,null,null,null,"MEDIDA CAUTELAR"]
[]
[null,null,null,"MEDIDA CAUTELAR",null,null,null,null,null,null,null,null,"EXPEDIENTE ADMINISTRATIVO"]
[]
[null,null,null,"OBSERVACIONES",null,null,null,null,null,null,null,null,"RESOLUCIONES DEMANDADAS"]
[]
[]
[]
[]
[null,null,null,"REGISTRO DE APODERADO SIC - DEMANDAS"]
[]
[]
[null,null,null,"No. PROCESO",null,"",null,null,{"$f":"LEN(F50)","v":0}]
[]
[null,null,null,"ID EKOGUI",null,""]
[]
[null,null,null,"APODERADO  SIC ACTUAL"]
[]
[null,null,null,"DELEGATURA O DEPENDENCIA",null,""]
[]
[null,null,null,"ASUNTOS",null,""]
[]
[null,null,null,"VALOR PRETENSIÓN",null,""]
[]
[]
[]
[null,null,null,"DATOS COMPLEMENTARIOS SISTEMA DE TRAMITE",null,null,null,null,null,null,null,null,"REGISTRO DE SENTENCIAS"]
[]
[null,null,null,"No. PROCESO",null,"",null,null,{"$f":"LEN(F66)","v":0},null,null,null,"No. PROCESO",null,"",null,null,{"$f":"LEN(O66)","v":0}]
[]
[null,null,null,"EXPEDIENTE ADMINISTRATIVO",null,null,null,null,null,null,null,null," INSTANCIA DE LA SENTECIA"]
[]
[null,null,null,"ACTOS DEMANDADOS",null,null,null,null,null,null,null,null,"AÑO"]
[]
[null,null,null,"RADICADO SIC- PADRE",null,null,null,null,null,null,null,null,"MES"]
[]
[null,null,null,"RADICADO SIC - ACUMULADOS",null,null,null,null,null,null,null,null,"DIA"]
[]
[null,null,null,"ASUNTO COBRO COACTIVO No.",null,null,null,null,null,null,null,null,"FECHA NOTIFICACION SENTENCIA",null,{"$f":"CONCATENATE(O70,\" / \",O72,\" / \",O74)","v":" /  / "}]
[]
[null,null,null,"AÑO",null,null,null,null,null,null,null,null,"SENTIDO FALLO"]
[]
[null,null,null,"MES",null,null,null,null,null,null,null,null,"DECISION DE MEDIDA CAUTELAR"]
[]
[null,null,null,"DIA"]
[]
[null,null,null,"FECHA MEMORANDO DE  NOTIFICACIÓN A DEPENDENCIAS",null,{"$f":"CONCATENATE(F78,\"/\",F80,\"/\",F82)","v":"//"},null,null,null,null,null,null,"DECISIÓN DE LA SUSPENSIÓN "]

{"sheet":"BASE PRINCIPAL","index":2,"n_rows":26,"n_cols":56,"rows_kept":26,"cut":false,"hidden":false,"merged":[[1,0,1,1],[1,2,1,12],[1,14,2,17],[2,29,2,30]]}
[]
[{"$error":"#VALUE!"},null,"CUADRO INTERNO PARA CONTROL DE PROCESOS",null,null,null,null,null,null,null,null,null,null,null,"SEMAFORO DE VENCIMIENTOS",null,null,null,{"$f":"TODAY()","v":"2024-09-19"},null,null,null,null,null,null,null,null,null,null,null,null,null,null,null,null,null,null,null,null,null,null,null,null,null,null,null,null,null,null,null,null,null,null,"2024-02-09","2024-03-31","2024-04-01"]
[null,null,"Fecha de Notificacion",null,null,null,null,null,null,null,null,null,null,null,null,null,null,null,null,null,null,null,null,null,null,null,null,null,null,"SIC"]
["TIPO DE DEMANDA","TIPO DE ACCION","FECHA","ID EKOGUI","RADICADO\n SIC- PADRE","RADICADO \nSIC - ACUMULADOS","N.PROCESO","DESPACHO DE ORIGEN","TIPO DE NOTIFICACION","AÑO","MES","DIA","FECHA AUTO ADMISORIO","ESTADO","FECHA NOTIFICACION AUTO","FECHA PROYECCION ABOGADO","FECHA DE VENCIMIENTO INTERNO","FECHA VENCIMIENTO LEGAL","APODERADO  SIC ACTUAL","DELEGATURA O DEPENDENCIA","ASUNTOS","VALOR PRETENSIÓN","EXPEDIENTE ADMINISTRATIVO","ACTOS DEMANDADOS","MEDIDA CAUTELAR","DECISIÓN DE LA SUSPENSIÓN ","DEMANDANTE","IDENTIFICACIÓN"," VINCULADOS","DEMANDADO","VINCULADA","ASUNTO COBRO COACTIVO No.","FECHA MEMORANDO NOTIFICACIÓN A DEPENDENCIAS","No. RADICADO / NOTIFICACIONES Y CERTIFICACIONES ","SENTENCIA 1A INSTANCIA","FECHA NOTIFICACION SENTENCIA","SENTIDO FALLO","PROYECTO APELACION ABOGADO","CORRECCIONES","PRESENTACION DE LA   APELACION ","SENTENCIA 2A INSTANCIA","FECHA NOTIFICACION SENTENCIA2","SENTIDO FALLO2","FECHA DE CUMPLIMIENTO DE SENTENCIA","OBSERVACIONES","PROYECCION","VENCIMIENTO INTERNO","VENCIMIENTO LEGAL"]
[null,null,null,{"$f":"IFERROR(VLOOKUP(Tabla3[[#This Row],[N.PROCESO]],Tabla16[],2,FALSE),\"\")","v":""},{"$f":"IFERROR(VLOOKUP(Tabla3[[#This Row],[N.PROCESO]],Tabla12[],4,FALSE),\"\")","v":""},{"$f":"IFERROR(VLOOKUP(Tabla3[[#This Row],[N.PROCESO]],Tabla9[],2,FALSE),\"\")","v":""},null,null,null,null,null,null,{"$f":"IF(OR(Tabla3[[#This Row],[AÑO]]=0,Tabla3[[#This Row],[MES]]=0,Tabla3[[#This Row],[DIA]]=0),\"\",CONCATENATE(Tabla3[[#This Row],[AÑO]],\"/\",Tabla3[[#This Row],[MES]],\"/\",Tabla3[[#This Row],[DIA]]))","v":""},{"$f":"IF(Tabla3[[#This Row],[N.PROCESO]]=0,\"\",IFERROR(VLOOKUP(Tabla3[[#This Row],[N.PROCESO]],Tabla17[],2,FALSE),\"Revisar\"))","v":""},{"$f":"IF(Tabla3[[#This Row],[FECHA]]=0,\"\",Tabla3[[#This Row],[FECHA]]+2)","v":""},{"$f":"IF(Tabla3[[#This Row],[FECHA]]=0,\"\",SumarDiasLaborables($C5,$AT5))","v":""},{"$f":"IF(Tabla3[[#This Row],[FECHA]]=0,\"\",SumarDiasLaborables($C5,$AU5))","v":""},{"$f":"IF(Tabla3[[#This Row],[FECHA]]=0,\"\",SumarDiasLaborables($C5,$AV5))","v":""},{"$f":"IF(Tabla3[[#This Row],[N.PROCESO]]=0,\"\",IFERROR(VLOOKUP(Tabla3[[#This Row],[N.PROCESO]],Tabla11[],3,FALSE),\"  S . A  \"))","v":""},{"$f":"IFERROR(VLOOKUP(Tabla3[[#This Row],[N.PROCESO]],Tabla11[],4,FALSE),\"\")","v":""},{"$f":"IFERROR(VLOOKUP(Tabla3[[#This Row],[N.PROCESO]],Tabla11[],5,FALSE),\"\")","v":""},{"$f":"IFERROR(VLOOKUP(Tabla3[[#This Row],[N.PROCESO]],Tabla11[],6,FALSE),\"\")","v":""},{"$f":"IFERROR(VLOOKUP(Tabla3[[#This Row],[N.PROCESO]],Tabla12[],2,FALSE),\"\")","v":""},{"$f":"IF(Tabla3[[#This Row],[N.PROCESO]]=0,\"\",VLOOKUP(Tabla3[[#This Row],[N.PROCESO]],Tabla12[],3,FALSE))","v":""},null,{"$f":"IF(Tabla3[[#This Row],[N.PROCESO]]=0,\"\",VLOOKUP(Tabla3[[#This Row],[N.PROCESO]],Tabla14[],2,FALSE))","v":""},null,null,null,null,null,{"$f":"IF(Tabla3[[#This Row],[N.PROCESO]]=0,\"\",VLOOKUP(Tabla3[[#This Row],[N.PROCESO]],Tabla12[],5,FALSE))","v":""},{"$f":"IF(Tabla3[[#This Row],[N.PROCESO]]=0,\"\",VLOOKUP(Tabla3[[#This Row],[N.PROCESO]],Tabla12[],9,FALSE))","v":""},{"$f":"IF(Tabla3[[#This Row],[N.PROCESO]]=0,\"\",VLOOKUP(Tabla3[[#This Row],[N.PROCESO]],Tabla12[],9,FALSE))","v":""},{"$f":"IFERROR(VLOOKUP(Tabla3[[#This Row],[N.PROCESO]],#REF!,2,FALSE),\"\")","v":""},{"$f":"IFERROR(VLOOKUP(Tabla3[[#This Row],[N.PROCESO]],#REF!,6,FALSE),\"\")","v":""},{"$f":"IFERROR(VLOOKUP(Tabla3[[#This Row],[N.PROCESO]],#REF!,7,FALSE),\"\")","v":""},{"$f":"IF(Tabla3[[#This Row],[SENTIDO FALLO]]=\"\",\"\",IF(Tabla3[[#This Row],[SENTIDO FALLO]]=\"DESFAVORABLE\",Tabla3[[#This Row],[FECHA NOTIFICACION SENTENCIA]]+5, \" NO APLICA\"))","v":""},{"$f":"IFERROR(Tabla3[[#This Row],[PROYECTO APELACION ABOGADO]]+2,\"\")","v":""},{"$f":"IF(Tabla3[[#This Row],[SENTIDO FALLO]]=\"\",\"\",IF(Tabla3[[#This Row],[SENTIDO FALLO]]=\"DESFAVORABLE\",Tabla3[[#This Row],[FECHA NOTIFICACION SENTENCIA]]+11, \" NO APLICA\"))","v":""},{"$f":"IFERROR(VLOOKUP(Tabla3[[#This Row],[N.PROCESO]],Tabla13[],2,FALSE),\"\")","v":""},{"$f":"IFERROR(VLOOKUP(Tabla3[[#This Row],[N.PROCESO]],Tabla13[],6,FALSE),\"\")","v":""},{"$f":"IFERROR(VLOOKUP(Tabla3[[#This Row],[N.PROCESO]],Tabla13[],7,FALSE),\"\")","v":""},{"$f":"IF(Tabla3[[#This Row],[SENTIDO FALLO2]]=\"\",\"\",IF(Tabla3[[#This Row],[SENTIDO FALLO2]]=\"DESFAVORABLE\",Tabla3[[#This Row],[FECHA NOTIFICACION SENTENCIA2]]+5,\" NO APLICA\"))","v":""},null,{"$f":"IF(Tabla3[[#This Row],[FECHA]]<$BB$2,\n    IF(OR(Tabla3[[#This Row],[TIPO DE DEMANDA]]=\"ACCION_DE_CUMPLIMIENTO\",\"INCONSTITUCIONAL\"),\"3\",\n        IF(Tabla3[[#This Row],[TIPO DE DEMANDA]]=\"ACCION_DE_GRUPO_y_POPULAR\",\"7\",\n            IF(Tabla3[[#This Row],[TIPO DE DEMANDA]]=\"PROCESOS_JUDICIALES_ORDINARIOS\",\"25\",\"0\")\n        )\n    ),\n    IF(AND(Tabla3[[#This Row],[FECHA]]>=$BB$2,Tabla3[[#This Row],[FECHA]]<$BC$2),\n        IF(OR(Tabla3[[#This Row],[TIPO DE DEMANDA]]=\"ACCION_DE_CUMPLIMIENTO\",\"INCONSTITUCIONAL\"),\"8\",\n            IF(Tabla3[[#This Row],[TIPO DE DEMANDA]]=\"ACCION_DE_GRUPO_y_POPULAR\",\"14\",\n                IF(Tabla3[[#This Row],[TIPO DE DEMANDA]]=\"PROCESOS_JUDICIALES_ORDINARIOS\",\"30\",\"0\")\n            )\n        ),\n        IF(Tabla3[[#This Row],[FECHA]]>=$BD$2,\n            IF(OR(Tabla3[[#This Row],[TIPO DE DEMANDA]]=\"ACCION_DE_CUMPLIMIENTO\",\"INCONSTITUCIONAL\"),\"3\",\n                IF(Tabla3[[#This Row],[TIPO DE DEMANDA]]=\"ACCION_DE_GRUPO_y_POPULAR\",\"7\",\n                    IF(Tabla3[[#This Row],[TIPO DE DEMANDA]]=\"PROCESOS_JUDICIALES_ORDINARIOS\",\"25\",\"0\")\n                )\n            ),\n            \"0\"\n        )\n    )\n)","v":"0"},{"$f":"IF(Tabla3[[#This Row],[FECHA]]<$BB$2,\n    IF(OR(Tabla3[[#This Row],[TIPO DE DEMANDA]]=\"ACCION_DE_CUMPLIMIENTO\",\"INCONSTITUCIONAL\"),\"4\",\n        IF(Tabla3[[#This Row],[TIPO DE DEMANDA]]=\"ACCION_DE_GRUPO_y_POPULAR\",\"9\",\n            IF(Tabla3[[#This Row],[TIPO DE DEMANDA]]=\"PROCESOS_JUDICIALES_ORDINARIOS\",\"29\",\"0\")\n        )\n    ),\n    IF(AND(Tabla3[[#This Row],[FECHA]]>=$BB$2,Tabla3[[#This Row],[FECHA]]<$BC$2),\n        IF(OR(Tabla3[[#This Row],[TIPO DE DEMANDA]]=\"ACCION_DE_CUMPLIMIENTO\",\"INCONSTITUCIONAL\"),\"9\",\n            IF(Tabla3[[#This Row],[TIPO DE DEMANDA]]=\"ACCION_DE_GRUPO_y_POPULAR\",\"14\",\n                IF(Tabla3[[#This Row],[TIPO DE DEMANDA]]=\"PROCESOS_JUDICIALES_ORDINARIOS\",\"34\",\"0\")\n            )\n        ),\n        IF(Tabla3[[#This Row],[FECHA]]>=$BD$2,\n            IF(OR(Tabla3[[#This Row],[TIPO DE DEMANDA]]=\"ACCION_DE_CUMPLIMIENTO\",\"INCONSTITUCIONAL\"),\"4\",\n                IF(Tabla3[[#This Row],[TIPO DE DEMANDA]]=\"ACCION_DE_GRUPO_y_POPULAR\",\"9\",\n                    IF(Tabla3[[#This Row],[TIPO DE DEMANDA]]=\"PROCESOS_JUDICIALES_ORDINARIOS\",\"29\",\"0\")\n                )\n            ),\n            \"0\"\n        )\n    )\n)","v":"0"},{"$f":"IF(Tabla3[[#This Row],[FECHA]]<$BB$2,\n    IF(OR(Tabla3[[#This Row],[TIPO DE DEMANDA]]=\"ACCION_DE_CUMPLIMIENTO\",\"INCONSTITUCIONAL\"),\"5\",\n        IF(Tabla3[[#This Row],[TIPO DE DEMANDA]]=\"ACCION_DE_GRUPO_y_POPULAR\",\"10\",\n            IF(Tabla3[[#This Row],[TIPO DE DEMANDA]]=\"PROCESOS_JUDICIALES_ORDINARIOS\",\"30\",\"0\")\n        )\n    ),\n    IF(AND(Tabla3[[#This Row],[FECHA]]>=$BB$2,Tabla3[[#This Row],[FECHA]]<$BC$2),\n        IF(OR(Tabla3[[#This Row],[TIPO DE DEMANDA]]=\"ACCION_DE_CUMPLIMIENTO\",\"INCONSTITUCIONAL\"),\"10\",\n            IF(Tabla3[[#This Row],[TIPO DE DEMANDA]]=\"ACCION_DE_GRUPO_y_POPULAR\",\"15\",\n                IF(Tabla3[[#This Row],[TIPO DE DEMANDA]]=\"PROCESOS_JUDICIALES_ORDINARIOS\",\"35\",\"0\")\n            )\n        ),\n        IF(Tabla3[[#This Row],[FECHA]]>=$BD$2,\n            IF(OR(Tabla3[[#This Row],[TIPO DE DEMANDA]]=\"ACCION_DE_CUMPLIMIENTO\",\"INCONSTITUCIONAL\"),\"5\",\n                IF(Tabla3[[#This Row],[TIPO DE DEMANDA]]=\"ACCION_DE_GRUPO_y_POPULAR\",\"10\",\n                    IF(Tabla3[[#This Row],[TIPO DE DEMANDA]]=\"PROCESOS_JUDICIALES_ORDINARIOS\",\"30\",\"0\")\n                )\n            ),\n            \"0\"\n        )\n    )\n)","v":"0"}]
[null,null,null,{"$f":"IFERROR(VLOOKUP(Tabla3[[#This Row],[N.PROCESO]],Tabla16[],2,FALSE),\"\")","v":""},{"$f":"IFERROR(VLOOKUP(Tabla3[[#This Row],[N.PROCESO]],Tabla12[],4,FALSE),\"\")","v":""},{"$f":"IFERROR(VLOOKUP(Tabla3[[#This Row],[N.PROCESO]],Tabla9[],2,FALSE),\"\")","v":""},null,null,null,null,null,null,{"$f":"IF(OR(Tabla3[[#This Row],[AÑO]]=0,Tabla3[[#This Row],[MES]]=0,Tabla3[[#This Row],[DIA]]=0),\"\",CONCATENATE(Tabla3[[#This Row],[AÑO]],\"/\",Tabla3[[#This Row],[MES]],\"/\",Tabla3[[#This Row],[DIA]]))","v":""},{"$f":"IF(Tabla3[[#This Row],[N.PROCESO]]=0,\"\",IFERROR(VLOOKUP(Tabla3[[#This Row],[N.PROCESO]],Tabla17[],2,FALSE),\"Revisar\"))","v":""},{"$f":"IF(Tabla3[[#This Row],[FECHA]]=0,\"\",Tabla3[[#This Row],[FECHA]]+2)","v":""},{"$f":"IF(Tabla3[[#This Row],[FECHA]]=0,\"\",SumarDiasLaborables($C6,$AT6))","v":""},{"$f":"IF(Tabla3[[#This Row],[FECHA]]=0,\"\",SumarDiasLaborables($C6,$AU6))","v":""},{"$f":"IF(Tabla3[[#This Row],[FECHA]]=0,\"\",SumarDiasLaborables($C6,$AV6))","v":""},{"$f":"IF(Tabla3[[#This Row],[N.PROCESO]]=0,\"\",IFERROR(VLOOKUP(Tabla3[[#This Row],[N.PROCESO]],Tabla11[],3,FALSE),\"  S . A  \"))","v":""},{"$f":"IFERROR(VLOOKUP(Tabla3[[#This Row],[N.PROCESO]],Tabla11[],4,FALSE),\"\")","v":""},{"$f":"IFERROR(VLOOKUP(Tabla3[[#This Row],[N.PROCESO]],Tabla11[],5,FALSE),\"\")","v":""},{"$f":"IFERROR(VLOOKUP(Tabla3[[#This Row],[N.PROCESO]],Tabla11[],6,FALSE),\"\")","v":""},{"$f":"IFERROR(VLOOKUP(Tabla3[[#This Row],[N.PROCESO]],Tabla12[],2,FALSE),\"\")","v":""},{"$f":"IF(Tabla3[[#This Row],[N.PROCESO]]=0,\"\",VLOOKUP(Tabla3[[#This Row],[N.PROCESO]],Tabla12[],3,FALSE))","v":""},null,{"$f":"IF(Tabla3[[#This Row],[N.PROCESO]]=0,\"\",VLOOKUP(Tabla3[[#This Row],[N.PROCESO]],Tabla14[],2,FALSE))","v":""},null,null,null,null,null,{"$f":"IF(Tabla3[[#This Row],[N.PROCESO]]=0,\"\",VLOOKUP(Tabla3[[#This Row],[N.PROCESO]],Tabla12[],5,FALSE))","v":""},{"$f":"IF(Tabla3[[#This Row],[N.PROCESO]]=0,\"\",VLOOKUP(Tabla3[[#This Row],[N.PROCESO]],Tabla12[],9,FALSE))","v":""},{"$f":"IF(Tabla3[[#This Row],[N.PROCESO]]=0,\"\",VLOOKUP(Tabla3[[#This Row],[N.PROCESO]],Tabla12[],9,FALSE))","v":""},{"$f":"IFERROR(VLOOKUP(Tabla3[[#This Row],[N.PROCESO]],#REF!,2,FALSE),\"\")","v":""},{"$f":"IFERROR(VLOOKUP(Tabla3[[#This Row],[N.PROCESO]],#REF!,6,FALSE),\"\")","v":""},{"$f":"IFERROR(VLOOKUP(Tabla3[[#This Row],[N.PROCESO]],#REF!,7,FALSE),\"\")","v":""},{"$f":"IF(Tabla3[[#This Row],[SENTIDO FALLO]]=\"\",\"\",IF(Tabla3[[#This Row],[SENTIDO FALLO]]=\"DESFAVORABLE\",Tabla3[[#This Row],[FECHA NOTIFICACION SENTENCIA]]+5, \" NO APLICA\"))","v":""},{"$f":"IFERROR(Tabla3[[#This Row],[PROYECTO APELACION ABOGADO]]+2,\"\")","v":""},{"$f":"IF(Tabla3[[#This Row],[SENTIDO FALLO]]=\"\",\"\",IF(Tabla3[[#This Row],[SENTIDO FALLO]]=\"DESFAVORABLE\",Tabla3[[#This Row],[FECHA NOTIFICACION SENTENCIA]]+11, \" NO APLICA\"))","v":""},{"$f":"IFERROR(VLOOKUP(Tabla3[[#This Row],[N.PROCESO]],Tabla13[],2,FALSE),\"\")","v":""},{"$f":"IFERROR(VLOOKUP(Tabla3[[#This Row],[N.PROCESO]],Tabla13[],6,FALSE),\"\")","v":""},{"$f":"IFERROR(VLOOKUP(Tabla3[[#This Row],[N.PROCESO]],Tabla13[],7,FALSE),\"\")","v":""},{"$f":"IF(Tabla3[[#This Row],[SENTIDO FALLO2]]=\"\",\"\",IF(Tabla3[[#This Row],[SENTIDO FALLO2]]=\"DESFAVORABLE\",Tabla3[[#This Row],[FECHA NOTIFICACION SENTENCIA2]]+5,\" NO APLICA\"))","v":""},null,{"$f":"IF(OR(Tabla3[[#This Row],[TIPO DE DEMANDA]]=\"ACCION_DE_CUMPLIMIENTO\",\"INCONSTITUCIONAL\"),\"2\",IF(Tabla3[[#This Row],[TIPO DE DEMANDA]]=\"ACCION_DE_GRUPO_y_POPULAR\",\"6\",IF(Tabla3[[#This Row],[TIPO DE DEMANDA]]=\"PROCESOS_JUDICIALES_ORDINARIOS\",\"21\",\"0\")))","v":"0"},{"$f":"IF(OR(Tabla3[[#This Row],[TIPO DE DEMANDA]]=\"ACCION_DE_CUMPLIMIENTO\",\"INCONSTITUCIONAL\"),\"4\",IF(Tabla3[[#This Row],[TIPO DE DEMANDA]]=\"ACCION_DE_GRUPO_y_POPULAR\",\"9\",IF(Tabla3[[#This Row],[TIPO DE DEMANDA]]=\"PROCESOS_JUDICIALES_ORDINARIOS\",\"28\",\"0\")))","v":"0"},{"$f":"IF(OR(Tabla3[[#This Row],[TIPO DE DEMANDA]]=\"ACCION_DE_CUMPLIMIENTO\",\"INCONSTITUCIONAL\"),\"5\",IF(Tabla3[[#This Row],[TIPO DE DEMANDA]]=\"ACCION_DE_GRUPO_y_POPULAR\",\"10\",IF(Tabla3[[#This Row],[TIPO DE DEMANDA]]=\"PROCESOS_JUDICIALES_ORDINARIOS\",\"30\",\"0\")))","v":"0"}]
[null,null,null,{"$f":"IFERROR(VLOOKUP(Tabla3[[#This Row],[N.PROCESO]],Tabla16[],2,FALSE),\"\")","v":""},{"$f":"IFERROR(VLOOKUP(Tabla3[[#This Row],[N.PROCESO]],Tabla12[],4,FALSE),\"\")","v":""},{"$f":"IFERROR(VLOOKUP(Tabla3[[#This Row],[N.PROCESO]],Tabla9[],2,FALSE),\"\")","v":""},null,null,null,null,null,null,{"$f":"IF(OR(Tabla3[[#This Row],[AÑO]]=0,Tabla3[[#This Row],[MES]]=0,Tabla3[[#This Row],[DIA]]=0),\"\",CONCATENATE(Tabla3[[#This Row],[AÑO]],\"/\",Tabla3[[#This Row],[MES]],\"/\",Tabla3[[#This Row],[DIA]]))","v":""},{"$f":"IF(Tabla3[[#This Row],[N.PROCESO]]=0,\"\",IFERROR(VLOOKUP(Tabla3[[#This Row],[N.PROCESO]],Tabla17[],2,FALSE),\"Revisar\"))","v":""},{"$f":"IF(Tabla3[[#This Row],[FECHA]]=0,\"\",Tabla3[[#This Row],[FECHA]]+2)","v":""},{"$f":"IF(Tabla3[[#This Row],[FECHA]]=0,\"\",SumarDiasLaborables($C7,$AT7))","v":""},{"$f":"IF(Tabla3[[#This Row],[FECHA]]=0,\"\",SumarDiasLaborables($C7,$AU7))","v":""},{"$f":"IF(Tabla3[[#This Row],[FECHA]]=0,\"\",SumarDiasLaborables($C7,$AV7))","v":""},{"$f":"IF(Tabla3[[#This Row],[N.PROCESO]]=0,\"\",IFERROR(VLOOKUP(Tabla3[[#This Row],[N.PROCESO]],Tabla11[],3,FALSE),\"  S . A  \"))","v":""},{"$f":"IFERROR(VLOOKUP(Tabla3[[#This Row],[N.PROCESO]],Tabla11[],4,FALSE),\"\")","v":""},{"$f":"IFERROR(VLOOKUP(Tabla3[[#This Row],[N.PROCESO]],Tabla11[],5,FALSE),\"\")","v":""},{"$f":"IFERROR(VLOOKUP(Tabla3[[#This Row],[N.PROCESO]],Tabla11[],6,FALSE),\"\")","v":""},{"$f":"IFERROR(VLOOKUP(Tabla3[[#This Row],[N.PROCESO]],Tabla12[],2,FALSE),\"\")","v":""},{"$f":"IF(Tabla3[[#This Row],[N.PROCESO]]=0,\"\",VLOOKUP(Tabla3[[#This Row],[N.PROCESO]],Tabla12[],3,FALSE))","v":""},null,{"$f":"IF(Tabla3[[#This Row],[N.PROCESO]]=0,\"\",VLOOKUP(Tabla3[[#This Row],[N.PROCESO]],Tabla14[],2,FALSE))","v":""},null,null,null,null,null,{"$f":"IF(Tabla3[[#This Row],[N.PROCESO]]=0,\"\",VLOOKUP(Tabla3[[#This Row],[N.PROCESO]],Tabla12[],5,FALSE))","v":""},{"$f":"IF(Tabla3[[#This Row],[N.PROCESO]]=0,\"\",VLOOKUP(Tabla3[[#This Row],[N.PROCESO]],Tabla12[],9,FALSE))","v":""},{"$f":"IF(Tabla3[[#This Row],[N.PROCESO]]=0,\"\",VLOOKUP(Tabla3[[#This Row],[N.PROCESO]],Tabla12[],9,FALSE))","v":""},{"$f":"IFERROR(VLOOKUP(Tabla3[[#This Row],[N.PROCESO]],#REF!,2,FALSE),\"\")","v":""},{"$f":"IFERROR(VLOOKUP(Tabla3[[#This Row],[N.PROCESO]],#REF!,6,FALSE),\"\")","v":""},{"$f":"IFERROR(VLOOKUP(Tabla3[[#This Row],[N.PROCESO]],#REF!,7,FALSE),\"\")","v":""},{"$f":"IF(Tabla3[[#This Row],[SENTIDO FALLO]]=\"\",\"\",IF(Tabla3[[#This Row],[SENTIDO FALLO]]=\"DESFAVORABLE\",Tabla3[[#This Row],[FECHA NOTIFICACION SENTENCIA]]+5, \" NO APLICA\"))","v":""},{"$f":"IFERROR(Tabla3[[#This Row],[PROYECTO APELACION ABOGADO]]+2,\"\")","v":""},{"$f":"IF(Tabla3[[#This Row],[SENTIDO FALLO]]=\"\",\"\",IF(Tabla3[[#This Row],[SENTIDO FALLO]]=\"DESFAVORABLE\",Tabla3[[#This Row],[FECHA NOTIFICACION SENTENCIA]]+11, \" NO APLICA\"))","v":""},{"$f":"IFERROR(VLOOKUP(Tabla3[[#This Row],[N.PROCESO]],Tabla13[],2,FALSE),\"\")","v":""},{"$f":"IFERROR(VLOOKUP(Tabla3[[#This Row],[N.PROCESO]],Tabla13[],6,FALSE),\"\")","v":""},{"$f":"IFERROR(VLOOKUP(Tabla3[[#This Row],[N.PROCESO]],Tabla13[],7,FALSE),\"\")","v":""},{"$f":"IF(Tabla3[[#This Row],[SENTIDO FALLO2]]=\"\",\"\",IF(Tabla3[[#This Row],[SENTIDO FALLO2]]=\"DESFAVORABLE\",Tabla3[[#This Row],[FECHA NOTIFICACION SENTENCIA2]]+5,\" NO APLICA\"))","v":""}]
[null,null,null,{"$f":"IFERROR(VLOOKUP(Tabla3[[#This Row],[N.PROCESO]],Tabla16[],2,FALSE),\"\")","v":""},{"$f":"IFERROR(VLOOKUP(Tabla3[[#This Row],[N.PROCESO]],Tabla12[],4,FALSE),\"\")","v":""},{"$f":"IFERROR(VLOOKUP(Tabla3[[#This Row],[N.PROCESO]],Tabla9[],2,FALSE),\"\")","v":""},null,null,null,null,null,null,{"$f":"IF(OR(Tabla3[[#This Row],[AÑO]]=0,Tabla3[[#This Row],[MES]]=0,Tabla3[[#This Row],[DIA]]=0),\"\",CONCATENATE(Tabla3[[#This Row],[AÑO]],\"/\",Tabla3[[#This Row],[MES]],\"/\",Tabla3[[#This Row],[DIA]]))","v":""},{"$f":"IF(Tabla3[[#This Row],[N.PROCESO]]=0,\"\",IFERROR(VLOOKUP(Tabla3[[#This Row],[N.PROCESO]],Tabla17[],2,FALSE),\"Revisar\"))","v":""},{"$f":"IF(Tabla3[[#This Row],[FECHA]]=0,\"\",Tabla3[[#This Row],[FECHA]]+2)","v":""},{"$f":"IF(Tabla3[[#This Row],[FECHA]]=0,\"\",SumarDiasLaborables($C8,$AT8))","v":""},{"$f":"IF(Tabla3[[#This Row],[FECHA]]=0,\"\",SumarDiasLaborables($C8,$AU8))","v":""},{"$f":"IF(Tabla3[[#This Row],[FECHA]]=0,\"\",SumarDiasLaborables($C8,$AV8))","v":""},{"$f":"IF(Tabla3[[#This Row],[N.PROCESO]]=0,\"\",IFERROR(VLOOKUP(Tabla3[[#This Row],[N.PROCESO]],Tabla11[],3,FALSE),\"  S . A  \"))","v":""},{"$f":"IFERROR(VLOOKUP(Tabla3[[#This Row],[N.PROCESO]],Tabla11[],4,FALSE),\"\")","v":""},{"$f":"IFERROR(VLOOKUP(Tabla3[[#This Row],[N.PROCESO]],Tabla11[],5,FALSE),\"\")","v":""},{"$f":"IFERROR(VLOOKUP(Tabla3[[#This Row],[N.PROCESO]],Tabla11[],6,FALSE),\"\")","v":""},{"$f":"IFERROR(VLOOKUP(Tabla3[[#This Row],[N.PROCESO]],Tabla12[],2,FALSE),\"\")","v":""},{"$f":"IF(Tabla3[[#This Row],[N.PROCESO]]=0,\"\",VLOOKUP(Tabla3[[#This Row],[N.PROCESO]],Tabla12[],3,FALSE))","v":""},null,{"$f":"IF(Tabla3[[#This Row],[N.PROCESO]]=0,\"\",VLOOKUP(Tabla3[[#This Row],[N.PROCESO]],Tabla14[],2,FALSE))","v":""},null,null,null,null,null,{"$f":"IF(Tabla3[[#This Row],[N.PROCESO]]=0,\"\",VLOOKUP(Tabla3[[#This Row],[N.PROCESO]],Tabla12[],5,FALSE))","v":""},{"$f":"IF(Tabla3[[#This Row],[N.PROCESO]]=0,\"\",VLOOKUP(Tabla3[[#This Row],[N.PROCESO]],Tabla12[],9,FALSE))","v":""},{"$f":"IF(Tabla3[[#This Row],[N.PROCESO]]=0,\"\",VLOOKUP(Tabla3[[#This Row],[N.PROCESO]],Tabla12[],9,FALSE))","v":""},{"$f":"IFERROR(VLOOKUP(Tabla3[[#This Row],[N.PROCESO]],#REF!,2,FALSE),\"\")","v":""},{"$f":"IFERROR(VLOOKUP(Tabla3[[#This Row],[N.PROCESO]],#REF!,6,FALSE),\"\")","v":""},{"$f":"IFERROR(VLOOKUP(Tabla3[[#This Row],[N.PROCESO]],#REF!,7,FALSE),\"\")","v":""},{"$f":"IF(Tabla3[[#This Row],[SENTIDO FALLO]]=\"\",\"\",IF(Tabla3[[#This Row],[SENTIDO FALLO]]=\"DESFAVORABLE\",Tabla3[[#This Row],[FECHA NOTIFICACION SENTENCIA]]+5, \" NO APLICA\"))","v":""},{"$f":"IFERROR(Tabla3[[#This Row],[PROYECTO APELACION ABOGADO]]+2,\"\")","v":""},{"$f":"IF(Tabla3[[#This Row],[SENTIDO FALLO]]=\"\",\"\",IF(Tabla3[[#This Row],[SENTIDO FALLO]]=\"DESFAVORABLE\",Tabla3[[#This Row],[FECHA NOTIFICACION SENTENCIA]]+11, \" NO APLICA\"))","v":""},{"$f":"IFERROR(VLOOKUP(Tabla3[[#This Row],[N.PROCESO]],Tabla13[],2,FALSE),\"\")","v":""},{"$f":"IFERROR(VLOOKUP(Tabla3[[#This Row],[N.PROCESO]],Tabla13[],6,FALSE),\"\")","v":""},{"$f":"IFERROR(VLOOKUP(Tabla3[[#This Row],[N.PROCESO]],Tabla13[],7,FALSE),\"\")","v":""},{"$f":"IF(Tabla3[[#This Row],[SENTIDO FALLO2]]=\"\",\"\",IF(Tabla3[[#This Row],[SENTIDO FALLO2]]=\"DESFAVORABLE\",Tabla3[[#This Row],[FECHA NOTIFICACION SENTENCIA2]]+5,\" NO APLICA\"))","v":""}]
[null,null,null,{"$f":"IFERROR(VLOOKUP(Tabla3[[#This Row],[N.PROCESO]],Tabla16[],2,FALSE),\"\")","v":""},{"$f":"IFERROR(VLOOKUP(Tabla3[[#This Row],[N.PROCESO]],Tabla12[],4,FALSE),\"\")","v":""},{"$f":"IFERROR(VLOOKUP(Tabla3[[#This Row],[N.PROCESO]],Tabla9[],2,FALSE),\"\")","v":""},null,null,null,null,null,null,{"$f":"IF(OR(Tabla3[[#This Row],[AÑO]]=0,Tabla3[[#This Row],[MES]]=0,Tabla3[[#This Row],[DIA]]=0),\"\",CONCATENATE(Tabla3[[#This Row],[AÑO]],\"/\",Tabla3[[#This Row],[MES]],\"/\",Tabla3[[#This Row],[DIA]]))","v":""},{"$f":"IF(Tabla3[[#This Row],[N.PROCESO]]=0,\"\",IFERROR(VLOOKUP(Tabla3[[#This Row],[N.PROCESO]],Tabla17[],2,FALSE),\"Revisar\"))","v":""},{"$f":"IF(Tabla3[[#This Row],[FECHA]]=0,\"\",Tabla3[[#This Row],[FECHA]]+2)","v":""},{"$f":"IF(Tabla3[[#This Row],[FECHA]]=0,\"\",SumarDiasLaborables($C9,$AT9))","v":""},{"$f":"IF(Tabla3[[#This Row],[FECHA]]=0,\"\",SumarDiasLaborables($C9,$AU9))","v":""},{"$f":"IF(Tabla3[[#This Row],[FECHA]]=0,\"\",SumarDiasLaborables($C9,$AV9))","v":""},{"$f":"IF(Tabla3[[#This Row],[N.PROCESO]]=0,\"\",IFERROR(VLOOKUP(Tabla3[[#This Row],[N.PROCESO]],Tabla11[],3,FALSE),\"  S . A  \"))","v":""},{"$f":"IFERROR(VLOOKUP(Tabla3[[#This Row],[N.PROCESO]],Tabla11[],4,FALSE),\"\")","v":""},{"$f":"IFERROR(VLOOKUP(Tabla3[[#This Row],[N.PROCESO]],Tabla11[],5,FALSE),\"\")","v":""},{"$f":"IFERROR(VLOOKUP(Tabla3[[#This Row],[N.PROCESO]],Tabla11[],6,FALSE),\"\")","v":""},{"$f":"IFERROR(VLOOKUP(Tabla3[[#This Row],[N.PROCESO]],Tabla12[],2,FALSE),\"\")","v":""},{"$f":"IF(Tabla3[[#This Row],[N.PROCESO]]=0,\"\",VLOOKUP(Tabla3[[#This Row],[N.PROCESO]],Tabla12[],3,FALSE))","v":""},null,{"$f":"IF(Tabla3[[#This Row],[N.PROCESO]]=0,\"\",VLOOKUP(Tabla3[[#This Row],[N.PROCESO]],Tabla14[],2,FALSE))","v":""},null,null,null,null,null,{"$f":"IF(Tabla3[[#This Row],[N.PROCESO]]=0,\"\",VLOOKUP(Tabla3[[#This Row],[N.PROCESO]],Tabla12[],5,FALSE))","v":""},{"$f":"IF(Tabla3[[#This Row],[N.PROCESO]]=0,\"\",VLOOKUP(Tabla3[[#This Row],[N.PROCESO]],Tabla12[],9,FALSE))","v":""},{"$f":"IF(Tabla3[[#This Row],[N.PROCESO]]=0,\"\",VLOOKUP(Tabla3[[#This Row],[N.PROCESO]],Tabla12[],9,FALSE))","v":""},{"$f":"IFERROR(VLOOKUP(Tabla3[[#This Row],[N.PROCESO]],#REF!,2,FALSE),\"\")","v":""},{"$f":"IFERROR(VLOOKUP(Tabla3[[#This Row],[N.PROCESO]],#REF!,6,FALSE),\"\")","v":""},{"$f":"IFERROR(VLOOKUP(Tabla3[[#This Row],[N.PROCESO]],#REF!,7,FALSE),\"\")","v":""},{"$f":"IF(Tabla3[[#This Row],[SENTIDO FALLO]]=\"\",\"\",IF(Tabla3[[#This Row],[SENTIDO FALLO]]=\"DESFAVORABLE\",Tabla3[[#This Row],[FECHA NOTIFICACION SENTENCIA]]+5, \" NO APLICA\"))","v":""},{"$f":"IFERROR(Tabla3[[#This Row],[PROYECTO APELACION ABOGADO]]+2,\"\")","v":""},{"$f":"IF(Tabla3[[#This Row],[SENTIDO FALLO]]=\"\",\"\",IF(Tabla3[[#This Row],[SENTIDO FALLO]]=\"DESFAVORABLE\",Tabla3[[#This Row],[FECHA NOTIFICACION SENTENCIA]]+11, \" NO APLICA\"))","v":""},{"$f":"IFERROR(VLOOKUP(Tabla3[[#This Row],[N.PROCESO]],Tabla13[],2,FALSE),\"\")","v":""},{"$f":"IFERROR(VLOOKUP(Tabla3[[#This Row],[N.PROCESO]],Tabla13[],6,FALSE),\"\")","v":""},{"$f":"IFERROR(VLOOKUP(Tabla3[[#This Row],[N.PROCESO]],Tabla13[],7,FALSE),\"\")","v":""},{"$f":"IF(Tabla3[[#This Row],[SENTIDO FALLO2]]=\"\",\"\",IF(Tabla3[[#This Row],[SENTIDO FALLO2]]=\"DESFAVORABLE\",Tabla3[[#This Row],[FECHA NOTIFICACION SENTENCIA2]]+5,\" NO APLICA\"))","v":""}]
[null,null,null,{"$f":"IFERROR(VLOOKUP(Tabla3[[#This Row],[N.PROCESO]],Tabla16[],2,FALSE),\"\")","v":""},{"$f":"IFERROR(VLOOKUP(Tabla3[[#This Row],[N.PROCESO]],Tabla12[],4,FALSE),\"\")","v":""},{"$f":"IFERROR(VLOOKUP(Tabla3[[#This Row],[N.PROCESO]],Tabla9[],2,FALSE),\"\")","v":""},null,null,null,null,null,null,{"$f":"IF(OR(Tabla3[[#This Row],[AÑO]]=0,Tabla3[[#This Row],[MES]]=0,Tabla3[[#This Row],[DIA]]=0),\"\",CONCATENATE(Tabla3[[#This Row],[AÑO]],\"/\",Tabla3[[#This Row],[MES]],\"/\",Tabla3[[#This Row],[DIA]]))","v":""},{"$f":"IF(Tabla3[[#This Row],[N.PROCESO]]=0,\"\",IFERROR(VLOOKUP(Tabla3[[#This Row],[N.PROCESO]],Tabla17[],2,FALSE),\"Revisar\"))","v":""},{"$f":"IF(Tabla3[[#This Row],[FECHA]]=0,\"\",Tabla3[[#This Row],[FECHA]]+2)","v":""},{"$f":"IF(Tabla3[[#This Row],[FECHA]]=0,\"\",SumarDiasLaborables($C10,$AT10))","v":""},{"$f":"IF(Tabla3[[#This Row],[FECHA]]=0,\"\",SumarDiasLaborables($C10,$AU10))","v":""},{"$f":"IF(Tabla3[[#This Row],[FECHA]]=0,\"\",SumarDiasLaborables($C10,$AV10))","v":""},{"$f":"IF(Tabla3[[#This Row],[N.PROCESO]]=0,\"\",IFERROR(VLOOKUP(Tabla3[[#This Row],[N.PROCESO]],Tabla11[],3,FALSE),\"  S . A  \"))","v":""},{"$f":"IFERROR(VLOOKUP(Tabla3[[#This Row],[N.PROCESO]],Tabla11[],4,FALSE),\"\")","v":""},{"$f":"IFERROR(VLOOKUP(Tabla3[[#This Row],[N.PROCESO]],Tabla11[],5,FALSE),\"\")","v":""},{"$f":"IFERROR(VLOOKUP(Tabla3[[#This Row],[N.PROCESO]],Tabla11[],6,FALSE),\"\")","v":""},{"$f":"IFERROR(VLOOKUP(Tabla3[[#This Row],[N.PROCESO]],Tabla12[],2,FALSE),\"\")","v":""},{"$f":"IF(Tabla3[[#This Row],[N.PROCESO]]=0,\"\",VLOOKUP(Tabla3[[#This Row],[N.PROCESO]],Tabla12[],3,FALSE))","v":""},null,{"$f":"IF(Tabla3[[#This Row],[N.PROCESO]]=0,\"\",VLOOKUP(Tabla3[[#This Row],[N.PROCESO]],Tabla14[],2,FALSE))","v":""},null,null,null,null,null,{"$f":"IF(Tabla3[[#This Row],[N.PROCESO]]=0,\"\",VLOOKUP(Tabla3[[#This Row],[N.PROCESO]],Tabla12[],5,FALSE))","v":""},{"$f":"IF(Tabla3[[#This Row],[N.PROCESO]]=0,\"\",VLOOKUP(Tabla3[[#This Row],[N.PROCESO]],Tabla12[],9,FALSE))","v":""},{"$f":"IF(Tabla3[[#This Row],[N.PROCESO]]=0,\"\",VLOOKUP(Tabla3[[#This Row],[N.PROCESO]],Tabla12[],9,FALSE))","v":""},{"$f":"IFERROR(VLOOKUP(Tabla3[[#This Row],[N.PROCESO]],#REF!,2,FALSE),\"\")","v":""},{"$f":"IFERROR(VLOOKUP(Tabla3[[#This Row],[N.PROCESO]],#REF!,6,FALSE),\"\")","v":""},{"$f":"IFERROR(VLOOKUP(Tabla3[[#This Row],[N.PROCESO]],#REF!,7,FALSE),\"\")","v":""},{"$f":"IF(Tabla3[[#This Row],[SENTIDO FALLO]]=\"\",\"\",IF(Tabla3[[#This Row],[SENTIDO FALLO]]=\"DESFAVORABLE\",Tabla3[[#This Row],[FECHA NOTIFICACION SENTENCIA]]+5, \" NO APLICA\"))","v":""},{"$f":"IFERROR(Tabla3[[#This Row],[PROYECTO APELACION ABOGADO]]+2,\"\")","v":""},{"$f":"IF(Tabla3[[#This Row],[SENTIDO FALLO]]=\"\",\"\",IF(Tabla3[[#This Row],[SENTIDO FALLO]]=\"DESFAVORABLE\",Tabla3[[#This Row],[FECHA NOTIFICACION SENTENCIA]]+11, \" NO APLICA\"))","v":""},{"$f":"IFERROR(VLOOKUP(Tabla3[[#This Row],[N.PROCESO]],Tabla13[],2,FALSE),\"\")","v":""},{"$f":"IFERROR(VLOOKUP(Tabla3[[#This Row],[N.PROCESO]],Tabla13[],6,FALSE),\"\")","v":""},{"$f":"IFERROR(VLOOKUP(Tabla3[[#This Row],[N.PROCESO]],Tabla13[],7,FALSE),\"\")","v":""},{"$f":"IF(Tabla3[[#This Row],[SENTIDO FALLO2]]=\"\",\"\",IF(Tabla3[[#This Row],[SENTIDO FALLO2]]=\"DESFAVORABLE\",Tabla3[[#This Row],[FECHA NOTIFICACION SENTENCIA2]]+5,\" NO APLICA\"))","v":""}]
[null,null,null,{"$f":"IFERROR(VLOOKUP(Tabla3[[#This Row],[N.PROCESO]],Tabla16[],2,FALSE),\"\")","v":""},{"$f":"IFERROR(VLOOKUP(Tabla3[[#This Row],[N.PROCESO]],Tabla12[],4,FALSE),\"\")","v":""},{"$f":"IFERROR(VLOOKUP(Tabla3[[#This Row],[N.PROCESO]],Tabla9[],2,FALSE),\"\")","v":""},null,null,null,null,null,null,{"$f":"IF(OR(Tabla3[[#This Row],[AÑO]]=0,Tabla3[[#This Row],[MES]]=0,Tabla3[[#This Row],[DIA]]=0),\"\",CONCATENATE(Tabla3[[#This Row],[AÑO]],\"/\",Tabla3[[#This Row],[MES]],\"/\",Tabla3[[#This Row],[DIA]]))","v":""},{"$f":"IF(Tabla3[[#This Row],[N.PROCESO]]=0,\"\",IFERROR(VLOOKUP(Tabla3[[#This Row],[N.PROCESO]],Tabla17[],2,FALSE),\"Revisar\"))","v":""},{"$f":"IF(Tabla3[[#This Row],[FECHA]]=0,\"\",Tabla3[[#This Row],[FECHA]]+2)","v":""},{"$f":"IF(Tabla3[[#This Row],[FECHA]]=0,\"\",SumarDiasLaborables($C11,$AT11))","v":""},{"$f":"IF(Tabla3[[#This Row],[FECHA]]=0,\"\",SumarDiasLaborables($C11,$AU11))","v":""},{"$f":"IF(Tabla3[[#This Row],[FECHA]]=0,\"\",SumarDiasLaborables($C11,$AV11))","v":""},{"$f":"IF(Tabla3[[#This Row],[N.PROCESO]]=0,\"\",IFERROR(VLOOKUP(Tabla3[[#This Row],[N.PROCESO]],Tabla11[],3,FALSE),\"  S . A  \"))","v":""},{"$f":"IFERROR(VLOOKUP(Tabla3[[#This Row],[N.PROCESO]],Tabla11[],4,FALSE),\"\")","v":""},{"$f":"IFERROR(VLOOKUP(Tabla3[[#This Row],[N.PROCESO]],Tabla11[],5,FALSE),\"\")","v":""},{"$f":"IFERROR(VLOOKUP(Tabla3[[#This Row],[N.PROCESO]],Tabla11[],6,FALSE),\"\")","v":""},{"$f":"IFERROR(VLOOKUP(Tabla3[[#This Row],[N.PROCESO]],Tabla12[],2,FALSE),\"\")","v":""},{"$f":"IF(Tabla3[[#This Row],[N.PROCESO]]=0,\"\",VLOOKUP(Tabla3[[#This Row],[N.PROCESO]],Tabla12[],3,FALSE))","v":""},null,{"$f":"IF(Tabla3[[#This Row],[N.PROCESO]]=0,\"\",VLOOKUP(Tabla3[[#This Row],[N.PROCESO]],Tabla14[],2,FALSE))","v":""},null,null,null,null,null,{"$f":"IF(Tabla3[[#This Row],[N.PROCESO]]=0,\"\",VLOOKUP(Tabla3[[#This Row],[N.PROCESO]],Tabla12[],5,FALSE))","v":""},{"$f":"IF(Tabla3[[#This Row],[N.PROCESO]]=0,\"\",VLOOKUP(Tabla3[[#This Row],[N.PROCESO]],Tabla12[],9,FALSE))","v":""},{"$f":"IF(Tabla3[[#This Row],[N.PROCESO]]=0,\"\",VLOOKUP(Tabla3[[#This Row],[N.PROCESO]],Tabla12[],9,FALSE))","v":""},{"$f":"IFERROR(VLOOKUP(Tabla3[[#This Row],[N.PROCESO]],#REF!,2,FALSE),\"\")","v":""},{"$f":"IFERROR(VLOOKUP(Tabla3[[#This Row],[N.PROCESO]],#REF!,6,FALSE),\"\")","v":""},{"$f":"IFERROR(VLOOKUP(Tabla3[[#This Row],[N.PROCESO]],#REF!,7,FALSE),\"\")","v":""},{"$f":"IF(Tabla3[[#This Row],[SENTIDO FALLO]]=\"\",\"\",IF(Tabla3[[#This Row],[SENTIDO FALLO]]=\"DESFAVORABLE\",Tabla3[[#This Row],[FECHA NOTIFICACION SENTENCIA]]+5, \" NO APLICA\"))","v":""},{"$f":"IFERROR(Tabla3[[#This Row],[PROYECTO APELACION ABOGADO]]+2,\"\")","v":""},{"$f":"IF(Tabla3[[#This Row],[SENTIDO FALLO]]=\"\",\"\",IF(Tabla3[[#This Row],[SENTIDO FALLO]]=\"DESFAVORABLE\",Tabla3[[#This Row],[FECHA NOTIFICACION SENTENCIA]]+11, \" NO APLICA\"))","v":""},{"$f":"IFERROR(VLOOKUP(Tabla3[[#This Row],[N.PROCESO]],Tabla13[],2,FALSE),\"\")","v":""},{"$f":"IFERROR(VLOOKUP(Tabla3[[#This Row],[N.PROCESO]],Tabla13[],6,FALSE),\"\")","v":""},{"$f":"IFERROR(VLOOKUP(Tabla3[[#This Row],[N.PROCESO]],Tabla13[],7,FALSE),\"\")","v":""},{"$f":"IF(Tabla3[[#This Row],[SENTIDO FALLO2]]=\"\",\"\",IF(Tabla3[[#This Row],[SENTIDO FALLO2]]=\"DESFAVORABLE\",Tabla3[[#This Row],[FECHA NOTIFICACION SENTENCIA2]]+5,\" NO APLICA\"))","v":""}]
[null,null,null,{"$f":"IFERROR(VLOOKUP(Tabla3[[#This Row],[N.PROCESO]],Tabla16[],2,FALSE),\"\")","v":""},{"$f":"IFERROR(VLOOKUP(Tabla3[[#This Row],[N.PROCESO]],Tabla12[],4,FALSE),\"\")","v":""},{"$f":"IFERROR(VLOOKUP(Tabla3[[#This Row],[N.PROCESO]],Tabla9[],2,FALSE),\"\")","v":""},null,null,null,null,null,null,{"$f":"IF(OR(Tabla3[[#This Row],[AÑO]]=0,Tabla3[[#This Row],[MES]]=0,Tabla3[[#This Row],[DIA]]=0),\"\",CONCATENATE(Tabla3[[#This Row],[AÑO]],\"/\",Tabla3[[#This Row],[MES]],\"/\",Tabla3[[#This Row],[DIA]]))","v":""},{"$f":"IF(Tabla3[[#This Row],[N.PROCESO]]=0,\"\",IFERROR(VLOOKUP(Tabla3[[#This Row],[N.PROCESO]],Tabla17[],2,FALSE),\"Revisar\"))","v":""},{"$f":"IF(Tabla3[[#This Row],[FECHA]]=0,\"\",Tabla3[[#This Row],[FECHA]]+2)","v":""},{"$f":"IF(Tabla3[[#This Row],[FECHA]]=0,\"\",SumarDiasLaborables($C12,$AT12))","v":""},{"$f":"IF(Tabla3[[#This Row],[FECHA]]=0,\"\",SumarDiasLaborables($C12,$AU12))","v":""},{"$f":"IF(Tabla3[[#This Row],[FECHA]]=0,\"\",SumarDiasLaborables($C12,$AV12))","v":""},{"$f":"IF(Tabla3[[#This Row],[N.PROCESO]]=0,\"\",IFERROR(VLOOKUP(Tabla3[[#This Row],[N.PROCESO]],Tabla11[],3,FALSE),\"  S . A  \"))","v":""},{"$f":"IFERROR(VLOOKUP(Tabla3[[#This Row],[N.PROCESO]],Tabla11[],4,FALSE),\"\")","v":""},{"$f":"IFERROR(VLOOKUP(Tabla3[[#This Row],[N.PROCESO]],Tabla11[],5,FALSE),\"\")","v":""},{"$f":"IFERROR(VLOOKUP(Tabla3[[#This Row],[N.PROCESO]],Tabla11[],6,FALSE),\"\")","v":""},{"$f":"IFERROR(VLOOKUP(Tabla3[[#This Row],[N.PROCESO]],Tabla12[],2,FALSE),\"\")","v":""},{"$f":"IF(Tabla3[[#This Row],[N.PROCESO]]=0,\"\",VLOOKUP(Tabla3[[#This Row],[N.PROCESO]],Tabla12[],3,FALSE))","v":""},null,{"$f":"IF(Tabla3[[#This Row],[N.PROCESO]]=0,\"\",VLOOKUP(Tabla3[[#This Row],[N.PROCESO]],Tabla14[],2,FALSE))","v":""},null,null,null,null,null,{"$f":"IF(Tabla3[[#This Row],[N.PROCESO]]=0,\"\",VLOOKUP(Tabla3[[#This Row],[N.PROCESO]],Tabla12[],5,FALSE))","v":""},{"$f":"IF(Tabla3[[#This Row],[N.PROCESO]]=0,\"\",VLOOKUP(Tabla3[[#This Row],[N.PROCESO]],Tabla12[],9,FALSE))","v":""},{"$f":"IF(Tabla3[[#This Row],[N.PROCESO]]=0,\"\",VLOOKUP(Tabla3[[#This Row],[N.PROCESO]],Tabla12[],9,FALSE))","v":""},{"$f":"IFERROR(VLOOKUP(Tabla3[[#This Row],[N.PROCESO]],#REF!,2,FALSE),\"\")","v":""},{"$f":"IFERROR(VLOOKUP(Tabla3[[#This Row],[N.PROCESO]],#REF!,6,FALSE),\"\")","v":""},{"$f":"IFERROR(VLOOKUP(Tabla3[[#This Row],[N.PROCESO]],#REF!,7,FALSE),\"\")","v":""},{"$f":"IF(Tabla3[[#This Row],[SENTIDO FALLO]]=\"\",\"\",IF(Tabla3[[#This Row],[SENTIDO FALLO]]=\"DESFAVORABLE\",Tabla3[[#This Row],[FECHA NOTIFICACION SENTENCIA]]+5, \" NO APLICA\"))","v":""},{"$f":"IFERROR(Tabla3[[#This Row],[PROYECTO APELACION ABOGADO]]+2,\"\")","v":""},{"$f":"IF(Tabla3[[#This Row],[SENTIDO FALLO]]=\"\",\"\",IF(Tabla3[[#This Row],[SENTIDO FALLO]]=\"DESFAVORABLE\",Tabla3[[#This Row],[FECHA NOTIFICACION SENTENCIA]]+11, \" NO APLICA\"))","v":""},{"$f":"IFERROR(VLOOKUP(Tabla3[[#This Row],[N.PROCESO]],Tabla13[],2,FALSE),\"\")","v":""},{"$f":"IFERROR(VLOOKUP(Tabla3[[#This Row],[N.PROCESO]],Tabla13[],6,FALSE),\"\")","v":""},{"$f":"IFERROR(VLOOKUP(Tabla3[[#This Row],[N.PROCESO]],Tabla13[],7,FALSE),\"\")","v":""},{"$f":"IF(Tabla3[[#This Row],[SENTIDO FALLO2]]=\"\",\"\",IF(Tabla3[[#This Row],[SENTIDO FALLO2]]=\"DESFAVORABLE\",Tabla3[[#This Row],[FECHA NOTIFICACION SENTENCIA2]]+5,\" NO APLICA\"))","v":""}]
[null,null,null,{"$f":"IFERROR(VLOOKUP(Tabla3[[#This Row],[N.PROCESO]],Tabla16[],2,FALSE),\"\")","v":""},{"$f":"IFERROR(VLOOKUP(Tabla3[[#This Row],[N.PROCESO]],Tabla12[],4,FALSE),\"\")","v":""},{"$f":"IFERROR(VLOOKUP(Tabla3[[#This Row],[N.PROCESO]],Tabla9[],2,FALSE),\"\")","v":""},null,null,null,null,null,null,{"$f":"IF(OR(Tabla3[[#This Row],[AÑO]]=0,Tabla3[[#This Row],[MES]]=0,Tabla3[[#This Row],[DIA]]=0),\"\",CONCATENATE(Tabla3[[#This Row],[AÑO]],\"/\",Tabla3[[#This Row],[MES]],\"/\",Tabla3[[#This Row],[DIA]]))","v":""},{"$f":"IF(Tabla3[[#This Row],[N.PROCESO]]=0,\"\",IFERROR(VLOOKUP(Tabla3[[#This Row],[N.PROCESO]],Tabla17[],2,FALSE),\"Revisar\"))","v":""},{"$f":"IF(Tabla3[[#This Row],[FECHA]]=0,\"\",Tabla3[[#This Row],[FECHA]]+2)","v":""},{"$f":"IF(Tabla3[[#This Row],[FECHA]]=0,\"\",SumarDiasLaborables($C13,$AT13))","v":""},{"$f":"IF(Tabla3[[#This Row],[FECHA]]=0,\"\",SumarDiasLaborables($C13,$AU13))","v":""},{"$f":"IF(Tabla3[[#This Row],[FECHA]]=0,\"\",SumarDiasLaborables($C13,$AV13))","v":""},{"$f":"IF(Tabla3[[#This Row],[N.PROCESO]]=0,\"\",IFERROR(VLOOKUP(Tabla3[[#This Row],[N.PROCESO]],Tabla11[],3,FALSE),\"  S . A  \"))","v":""},{"$f":"IFERROR(VLOOKUP(Tabla3[[#This Row],[N.PROCESO]],Tabla11[],4,FALSE),\"\")","v":""},{"$f":"IFERROR(VLOOKUP(Tabla3[[#This Row],[N.PROCESO]],Tabla11[],5,FALSE),\"\")","v":""},{"$f":"IFERROR(VLOOKUP(Tabla3[[#This Row],[N.PROCESO]],Tabla11[],6,FALSE),\"\")","v":""},{"$f":"IFERROR(VLOOKUP(Tabla3[[#This Row],[N.PROCESO]],Tabla12[],2,FALSE),\"\")","v":""},{"$f":"IF(Tabla3[[#This Row],[N.PROCESO]]=0,\"\",VLOOKUP(Tabla3[[#This Row],[N.PROCESO]],Tabla12[],3,FALSE))","v":""},null,{"$f":"IF(Tabla3[[#This Row],[N.PROCESO]]=0,\"\",VLOOKUP(Tabla3[[#This Row],[N.PROCESO]],Tabla14[],2,FALSE))","v":""},null,null,null,null,null,{"$f":"IF(Tabla3[[#This Row],[N.PROCESO]]=0,\"\",VLOOKUP(Tabla3[[#This Row],[N.PROCESO]],Tabla12[],5,FALSE))","v":""},{"$f":"IF(Tabla3[[#This Row],[N.PROCESO]]=0,\"\",VLOOKUP(Tabla3[[#This Row],[N.PROCESO]],Tabla12[],9,FALSE))","v":""},{"$f":"IF(Tabla3[[#This Row],[N.PROCESO]]=0,\"\",VLOOKUP(Tabla3[[#This Row],[N.PROCESO]],Tabla12[],9,FALSE))","v":""},{"$f":"IFERROR(VLOOKUP(Tabla3[[#This Row],[N.PROCESO]],#REF!,2,FALSE),\"\")","v":""},{"$f":"IFERROR(VLOOKUP(Tabla3[[#This Row],[N.PROCESO]],#REF!,6,FALSE),\"\")","v":""},{"$f":"IFERROR(VLOOKUP(Tabla3[[#This Row],[N.PROCESO]],#REF!,7,FALSE),\"\")","v":""},{"$f":"IF(Tabla3[[#This Row],[SENTIDO FALLO]]=\"\",\"\",IF(Tabla3[[#This Row],[SENTIDO FALLO]]=\"DESFAVORABLE\",Tabla3[[#This Row],[FECHA NOTIFICACION SENTENCIA]]+5, \" NO APLICA\"))","v":""},{"$f":"IFERROR(Tabla3[[#This Row],[PROYECTO APELACION ABOGADO]]+2,\"\")","v":""},{"$f":"IF(Tabla3[[#This Row],[SENTIDO FALLO]]=\"\",\"\",IF(Tabla3[[#This Row],[SENTIDO FALLO]]=\"DESFAVORABLE\",Tabla3[[#This Row],[FECHA NOTIFICACION SENTENCIA]]+11, \" NO APLICA\"))","v":""},{"$f":"IFERROR(VLOOKUP(Tabla3[[#This Row],[N.PROCESO]],Tabla13[],2,FALSE),\"\")","v":""},{"$f":"IFERROR(VLOOKUP(Tabla3[[#This Row],[N.PROCESO]],Tabla13[],6,FALSE),\"\")","v":""},{"$f":"IFERROR(VLOOKUP(Tabla3[[#This Row],[N.PROCESO]],Tabla13[],7,FALSE),\"\")","v":""},{"$f":"IF(Tabla3[[#This Row],[SENTIDO FALLO2]]=\"\",\"\",IF(Tabla3[[#This Row],[SENTIDO FALLO2]]=\"DESFAVORABLE\",Tabla3[[#This Row],[FECHA NOTIFICACION SENTENCIA2]]+5,\" NO APLICA\"))","v":""}]
[null,null,null,{"$f":"IFERROR(VLOOKUP(Tabla3[[#This Row],[N.PROCESO]],Tabla16[],2,FALSE),\"\")","v":""},{"$f":"IFERROR(VLOOKUP(Tabla3[[#This Row],[N.PROCESO]],Tabla12[],4,FALSE),\"\")","v":""},{"$f":"IFERROR(VLOOKUP(Tabla3[[#This Row],[N.PROCESO]],Tabla9[],2,FALSE),\"\")","v":""},null,null,null,null,null,null,{"$f":"IF(OR(Tabla3[[#This Row],[AÑO]]=0,Tabla3[[#This Row],[MES]]=0,Tabla3[[#This Row],[DIA]]=0),\"\",CONCATENATE(Tabla3[[#This Row],[AÑO]],\"/\",Tabla3[[#This Row],[MES]],\"/\",Tabla3[[#This Row],[DIA]]))","v":""},{"$f":"IF(Tabla3[[#This Row],[N.PROCESO]]=0,\"\",IFERROR(VLOOKUP(Tabla3[[#This Row],[N.PROCESO]],Tabla17[],2,FALSE),\"Revisar\"))","v":""},{"$f":"IF(Tabla3[[#This Row],[FECHA]]=0,\"\",Tabla3[[#This Row],[FECHA]]+2)","v":""},{"$f":"IF(Tabla3[[#This Row],[FECHA]]=0,\"\",SumarDiasLaborables($C14,$AT14))","v":""},{"$f":"IF(Tabla3[[#This Row],[FECHA]]=0,\"\",SumarDiasLaborables($C14,$AU14))","v":""},{"$f":"IF(Tabla3[[#This Row],[FECHA]]=0,\"\",SumarDiasLaborables($C14,$AV14))","v":""},{"$f":"IF(Tabla3[[#This Row],[N.PROCESO]]=0,\"\",IFERROR(VLOOKUP(Tabla3[[#This Row],[N.PROCESO]],Tabla11[],3,FALSE),\"  S . A  \"))","v":""},{"$f":"IFERROR(VLOOKUP(Tabla3[[#This Row],[N.PROCESO]],Tabla11[],4,FALSE),\"\")","v":""},{"$f":"IFERROR(VLOOKUP(Tabla3[[#This Row],[N.PROCESO]],Tabla11[],5,FALSE),\"\")","v":""},{"$f":"IFERROR(VLOOKUP(Tabla3[[#This Row],[N.PROCESO]],Tabla11[],6,FALSE),\"\")","v":""},{"$f":"IFERROR(VLOOKUP(Tabla3[[#This Row],[N.PROCESO]],Tabla12[],2,FALSE),\"\")","v":""},{"$f":"IF(Tabla3[[#This Row],[N.PROCESO]]=0,\"\",VLOOKUP(Tabla3[[#This Row],[N.PROCESO]],Tabla12[],3,FALSE))","v":""},null,{"$f":"IF(Tabla3[[#This Row],[N.PROCESO]]=0,\"\",VLOOKUP(Tabla3[[#This Row],[N.PROCESO]],Tabla14[],2,FALSE))","v":""},null,null,null,null,null,{"$f":"IF(Tabla3[[#This Row],[N.PROCESO]]=0,\"\",VLOOKUP(Tabla3[[#This Row],[N.PROCESO]],Tabla12[],5,FALSE))","v":""},{"$f":"IF(Tabla3[[#This Row],[N.PROCESO]]=0,\"\",VLOOKUP(Tabla3[[#This Row],[N.PROCESO]],Tabla12[],9,FALSE))","v":""},{"$f":"IF(Tabla3[[#This Row],[N.PROCESO]]=0,\"\",VLOOKUP(Tabla3[[#This Row],[N.PROCESO]],Tabla12[],9,FALSE))","v":""},{"$f":"IFERROR(VLOOKUP(Tabla3[[#This Row],[N.PROCESO]],#REF!,2,FALSE),\"\")","v":""},{"$f":"IFERROR(VLOOKUP(Tabla3[[#This Row],[N.PROCESO]],#REF!,6,FALSE),\"\")","v":""},{"$f":"IFERROR(VLOOKUP(Tabla3[[#This Row],[N.PROCESO]],#REF!,7,FALSE),\"\")","v":""},{"$f":"IF(Tabla3[[#This Row],[SENTIDO FALLO]]=\"\",\"\",IF(Tabla3[[#This Row],[SENTIDO FALLO]]=\"DESFAVORABLE\",Tabla3[[#This Row],[FECHA NOTIFICACION SENTENCIA]]+5, \" NO APLICA\"))","v":""},{"$f":"IFERROR(Tabla3[[#This Row],[PROYECTO APELACION ABOGADO]]+2,\"\")","v":""},{"$f":"IF(Tabla3[[#This Row],[SENTIDO FALLO]]=\"\",\"\",IF(Tabla3[[#This Row],[SENTIDO FALLO]]=\"DESFAVORABLE\",Tabla3[[#This Row],[FECHA NOTIFICACION SENTENCIA]]+11, \" NO APLICA\"))","v":""},{"$f":"IFERROR(VLOOKUP(Tabla3[[#This Row],[N.PROCESO]],Tabla13[],2,FALSE),\"\")","v":""},{"$f":"IFERROR(VLOOKUP(Tabla3[[#This Row],[N.PROCESO]],Tabla13[],6,FALSE),\"\")","v":""},{"$f":"IFERROR(VLOOKUP(Tabla3[[#This Row],[N.PROCESO]],Tabla13[],7,FALSE),\"\")","v":""},{"$f":"IF(Tabla3[[#This Row],[SENTIDO FALLO2]]=\"\",\"\",IF(Tabla3[[#This Row],[SENTIDO FALLO2]]=\"DESFAVORABLE\",Tabla3[[#This Row],[FECHA NOTIFICACION SENTENCIA2]]+5,\" NO APLICA\"))","v":""}]
[null,null,null,{"$f":"IFERROR(VLOOKUP(Tabla3[[#This Row],[N.PROCESO]],Tabla16[],2,FALSE),\"\")","v":""},{"$f":"IFERROR(VLOOKUP(Tabla3[[#This Row],[N.PROCESO]],Tabla12[],4,FALSE),\"\")","v":""},{"$f":"IFERROR(VLOOKUP(Tabla3[[#This Row],[N.PROCESO]],Tabla9[],2,FALSE),\"\")","v":""},null,null,null,null,null,null,{"$f":"IF(OR(Tabla3[[#This Row],[AÑO]]=0,Tabla3[[#This Row],[MES]]=0,Tabla3[[#This Row],[DIA]]=0),\"\",CONCATENATE(Tabla3[[#This Row],[AÑO]],\"/\",Tabla3[[#This Row],[MES]],\"/\",Tabla3[[#This Row],[DIA]]))","v":""},{"$f":"IF(Tabla3[[#This Row],[N.PROCESO]]=0,\"\",IFERROR(VLOOKUP(Tabla3[[#This Row],[N.PROCESO]],Tabla17[],2,FALSE),\"Revisar\"))","v":""},{"$f":"IF(Tabla3[[#This Row],[FECHA]]=0,\"\",Tabla3[[#This Row],[FECHA]]+2)","v":""},{"$f":"IF(Tabla3[[#This Row],[FECHA]]=0,\"\",SumarDiasLaborables($C15,$AT15))","v":""},{"$f":"IF(Tabla3[[#This Row],[FECHA]]=0,\"\",SumarDiasLaborables($C15,$AU15))","v":""},{"$f":"IF(Tabla3[[#This Row],[FECHA]]=0,\"\",SumarDiasLaborables($C15,$AV15))","v":""},{"$f":"IF(Tabla3[[#This Row],[N.PROCESO]]=0,\"\",IFERROR(VLOOKUP(Tabla3[[#This Row],[N.PROCESO]],Tabla11[],3,FALSE),\"  S . A  \"))","v":""},{"$f":"IFERROR(VLOOKUP(Tabla3[[#This Row],[N.PROCESO]],Tabla11[],4,FALSE),\"\")","v":""},{"$f":"IFERROR(VLOOKUP(Tabla3[[#This Row],[N.PROCESO]],Tabla11[],5,FALSE),\"\")","v":""},{"$f":"IFERROR(VLOOKUP(Tabla3[[#This Row],[N.PROCESO]],Tabla11[],6,FALSE),\"\")","v":""},{"$f":"IFERROR(VLOOKUP(Tabla3[[#This Row],[N.PROCESO]],Tabla12[],2,FALSE),\"\")","v":""},{"$f":"IF(Tabla3[[#This Row],[N.PROCESO]]=0,\"\",VLOOKUP(Tabla3[[#This Row],[N.PROCESO]],Tabla12[],3,FALSE))","v":""},null,{"$f":"IF(Tabla3[[#This Row],[N.PROCESO]]=0,\"\",VLOOKUP(Tabla3[[#This Row],[N.PROCESO]],Tabla14[],2,FALSE))","v":""},null,null,null,null,null,{"$f":"IF(Tabla3[[#This Row],[N.PROCESO]]=0,\"\",VLOOKUP(Tabla3[[#This Row],[N.PROCESO]],Tabla12[],5,FALSE))","v":""},{"$f":"IF(Tabla3[[#This Row],[N.PROCESO]]=0,\"\",VLOOKUP(Tabla3[[#This Row],[N.PROCESO]],Tabla12[],9,FALSE))","v":""},{"$f":"IF(Tabla3[[#This Row],[N.PROCESO]]=0,\"\",VLOOKUP(Tabla3[[#This Row],[N.PROCESO]],Tabla12[],9,FALSE))","v":""},{"$f":"IFERROR(VLOOKUP(Tabla3[[#This Row],[N.PROCESO]],#REF!,2,FALSE),\"\")","v":""},{"$f":"IFERROR(VLOOKUP(Tabla3[[#This Row],[N.PROCESO]],#REF!,6,FALSE),\"\")","v":""},{"$f":"IFERROR(VLOOKUP(Tabla3[[#This Row],[N.PROCESO]],#REF!,7,FALSE),\"\")","v":""},{"$f":"IF(Tabla3[[#This Row],[SENTIDO FALLO]]=\"\",\"\",IF(Tabla3[[#This Row],[SENTIDO FALLO]]=\"DESFAVORABLE\",Tabla3[[#This Row],[FECHA NOTIFICACION SENTENCIA]]+5, \" NO APLICA\"))","v":""},{"$f":"IFERROR(Tabla3[[#This Row],[PROYECTO APELACION ABOGADO]]+2,\"\")","v":""},{"$f":"IF(Tabla3[[#This Row],[SENTIDO FALLO]]=\"\",\"\",IF(Tabla3[[#This Row],[SENTIDO FALLO]]=\"DESFAVORABLE\",Tabla3[[#This Row],[FECHA NOTIFICACION SENTENCIA]]+11, \" NO APLICA\"))","v":""},{"$f":"IFERROR(VLOOKUP(Tabla3[[#This Row],[N.PROCESO]],Tabla13[],2,FALSE),\"\")","v":""},{"$f":"IFERROR(VLOOKUP(Tabla3[[#This Row],[N.PROCESO]],Tabla13[],6,FALSE),\"\")","v":""},{"$f":"IFERROR(VLOOKUP(Tabla3[[#This Row],[N.PROCESO]],Tabla13[],7,FALSE),\"\")","v":""},{"$f":"IF(Tabla3[[#This Row],[SENTIDO FALLO2]]=\"\",\"\",IF(Tabla3[[#This Row],[SENTIDO FALLO2]]=\"DESFAVORABLE\",Tabla3[[#This Row],[FECHA NOTIFICACION SENTENCIA2]]+5,\" NO APLICA\"))","v":""}]
[null,null,null,{"$f":"IFERROR(VLOOKUP(Tabla3[[#This Row],[N.PROCESO]],Tabla16[],2,FALSE),\"\")","v":""},{"$f":"IFERROR(VLOOKUP(Tabla3[[#This Row],[N.PROCESO]],Tabla12[],4,FALSE),\"\")","v":""},{"$f":"IFERROR(VLOOKUP(Tabla3[[#This Row],[N.PROCESO]],Tabla9[],2,FALSE),\"\")","v":""},null,null,null,null,null,null,{"$f":"IF(OR(Tabla3[[#This Row],[AÑO]]=0,Tabla3[[#This Row],[MES]]=0,Tabla3[[#This Row],[DIA]]=0),\"\",CONCATENATE(Tabla3[[#This Row],[AÑO]],\"/\",Tabla3[[#This Row],[MES]],\"/\",Tabla3[[#This Row],[DIA]]))","v":""},{"$f":"IF(Tabla3[[#This Row],[N.PROCESO]]=0,\"\",IFERROR(VLOOKUP(Tabla3[[#This Row],[N.PROCESO]],Tabla17[],2,FALSE),\"Revisar\"))","v":""},{"$f":"IF(Tabla3[[#This Row],[FECHA]]=0,\"\",Tabla3[[#This Row],[FECHA]]+2)","v":""},{"$f":"IF(Tabla3[[#This Row],[FECHA]]=0,\"\",SumarDiasLaborables($C16,$AT16))","v":""},{"$f":"IF(Tabla3[[#This Row],[FECHA]]=0,\"\",SumarDiasLaborables($C16,$AU16))","v":""},{"$f":"IF(Tabla3[[#This Row],[FECHA]]=0,\"\",SumarDiasLaborables($C16,$AV16))","v":""},{"$f":"IF(Tabla3[[#This Row],[N.PROCESO]]=0,\"\",IFERROR(VLOOKUP(Tabla3[[#This Row],[N.PROCESO]],Tabla11[],3,FALSE),\"  S . A  \"))","v":""},{"$f":"IFERROR(VLOOKUP(Tabla3[[#This Row],[N.PROCESO]],Tabla11[],4,FALSE),\"\")","v":""},{"$f":"IFERROR(VLOOKUP(Tabla3[[#This Row],[N.PROCESO]],Tabla11[],5,FALSE),\"\")","v":""},{"$f":"IFERROR(VLOOKUP(Tabla3[[#This Row],[N.PROCESO]],Tabla11[],6,FALSE),\"\")","v":""},{"$f":"IFERROR(VLOOKUP(Tabla3[[#This Row],[N.PROCESO]],Tabla12[],2,FALSE),\"\")","v":""},{"$f":"IF(Tabla3[[#This Row],[N.PROCESO]]=0,\"\",VLOOKUP(Tabla3[[#This Row],[N.PROCESO]],Tabla12[],3,FALSE))","v":""},null,{"$f":"IF(Tabla3[[#This Row],[N.PROCESO]]=0,\"\",VLOOKUP(Tabla3[[#This Row],[N.PROCESO]],Tabla14[],2,FALSE))","v":""},null,null,null,null,null,{"$f":"IF(Tabla3[[#This Row],[N.PROCESO]]=0,\"\",VLOOKUP(Tabla3[[#This Row],[N.PROCESO]],Tabla12[],5,FALSE))","v":""},{"$f":"IF(Tabla3[[#This Row],[N.PROCESO]]=0,\"\",VLOOKUP(Tabla3[[#This Row],[N.PROCESO]],Tabla12[],9,FALSE))","v":""},{"$f":"IF(Tabla3[[#This Row],[N.PROCESO]]=0,\"\",VLOOKUP(Tabla3[[#This Row],[N.PROCESO]],Tabla12[],9,FALSE))","v":""},{"$f":"IFERROR(VLOOKUP(Tabla3[[#This Row],[N.PROCESO]],#REF!,2,FALSE),\"\")","v":""},{"$f":"IFERROR(VLOOKUP(Tabla3[[#This Row],[N.PROCESO]],#REF!,6,FALSE),\"\")","v":""},{"$f":"IFERROR(VLOOKUP(Tabla3[[#This Row],[N.PROCESO]],#REF!,7,FALSE),\"\")","v":""},{"$f":"IF(Tabla3[[#This Row],[SENTIDO FALLO]]=\"\",\"\",IF(Tabla3[[#This Row],[SENTIDO FALLO]]=\"DESFAVORABLE\",Tabla3[[#This Row],[FECHA NOTIFICACION SENTENCIA]]+5, \" NO APLICA\"))","v":""},{"$f":"IFERROR(Tabla3[[#This Row],[PROYECTO APELACION ABOGADO]]+2,\"\")","v":""},{"$f":"IF(Tabla3[[#This Row],[SENTIDO FALLO]]=\"\",\"\",IF(Tabla3[[#This Row],[SENTIDO FALLO]]=\"DESFAVORABLE\",Tabla3[[#This Row],[FECHA NOTIFICACION SENTENCIA]]+11, \" NO APLICA\"))","v":""},{"$f":"IFERROR(VLOOKUP(Tabla3[[#This Row],[N.PROCESO]],Tabla13[],2,FALSE),\"\")","v":""},{"$f":"IFERROR(VLOOKUP(Tabla3[[#This Row],[N.PROCESO]],Tabla13[],6,FALSE),\"\")","v":""},{"$f":"IFERROR(VLOOKUP(Tabla3[[#This Row],[N.PROCESO]],Tabla13[],7,FALSE),\"\")","v":""},{"$f":"IF(Tabla3[[#This Row],[SENTIDO FALLO2]]=\"\",\"\",IF(Tabla3[[#This Row],[SENTIDO FALLO2]]=\"DESFAVORABLE\",Tabla3[[#This Row],[FECHA NOTIFICACION SENTENCIA2]]+5,\" NO APLICA\"))","v":""}]
[null,null,null,{"$f":"IFERROR(VLOOKUP(Tabla3[[#This Row],[N.PROCESO]],Tabla16[],2,FALSE),\"\")","v":""},{"$f":"IFERROR(VLOOKUP(Tabla3[[#This Row],[N.PROCESO]],Tabla12[],4,FALSE),\"\")","v":""},{"$f":"IFERROR(VLOOKUP(Tabla3[[#This Row],[N.PROCESO]],Tabla9[],2,FALSE),\"\")","v":""},null,null,null,null,null,null,{"$f":"IF(OR(Tabla3[[#This Row],[AÑO]]=0,Tabla3[[#This Row],[MES]]=0,Tabla3[[#This Row],[DIA]]=0),\"\",CONCATENATE(Tabla3[[#This Row],[AÑO]],\"/\",Tabla3[[#This Row],[MES]],\"/\",Tabla3[[#This Row],[DIA]]))","v":""},{"$f":"IF(Tabla3[[#This Row],[N.PROCESO]]=0,\"\",IFERROR(VLOOKUP(Tabla3[[#This Row],[N.PROCESO]],Tabla17[],2,FALSE),\"Revisar\"))","v":""},{"$f":"IF(Tabla3[[#This Row],[FECHA]]=0,\"\",Tabla3[[#This Row],[FECHA]]+2)","v":""},{"$f":"IF(Tabla3[[#This Row],[FECHA]]=0,\"\",SumarDiasLaborables($C17,$AT17))","v":""},{"$f":"IF(Tabla3[[#This Row],[FECHA]]=0,\"\",SumarDiasLaborables($C17,$AU17))","v":""},{"$f":"IF(Tabla3[[#This Row],[FECHA]]=0,\"\",SumarDiasLaborables($C17,$AV17))","v":""},{"$f":"IF(Tabla3[[#This Row],[N.PROCESO]]=0,\"\",IFERROR(VLOOKUP(Tabla3[[#This Row],[N.PROCESO]],Tabla11[],3,FALSE),\"  S . A  \"))","v":""},{"$f":"IFERROR(VLOOKUP(Tabla3[[#This Row],[N.PROCESO]],Tabla11[],4,FALSE),\"\")","v":""},{"$f":"IFERROR(VLOOKUP(Tabla3[[#This Row],[N.PROCESO]],Tabla11[],5,FALSE),\"\")","v":""},{"$f":"IFERROR(VLOOKUP(Tabla3[[#This Row],[N.PROCESO]],Tabla11[],6,FALSE),\"\")","v":""},{"$f":"IFERROR(VLOOKUP(Tabla3[[#This Row],[N.PROCESO]],Tabla12[],2,FALSE),\"\")","v":""},{"$f":"IF(Tabla3[[#This Row],[N.PROCESO]]=0,\"\",VLOOKUP(Tabla3[[#This Row],[N.PROCESO]],Tabla12[],3,FALSE))","v":""},null,{"$f":"IF(Tabla3[[#This Row],[N.PROCESO]]=0,\"\",VLOOKUP(Tabla3[[#This Row],[N.PROCESO]],Tabla14[],2,FALSE))","v":""},null,null,null,null,null,{"$f":"IF(Tabla3[[#This Row],[N.PROCESO]]=0,\"\",VLOOKUP(Tabla3[[#This Row],[N.PROCESO]],Tabla12[],5,FALSE))","v":""},{"$f":"IF(Tabla3[[#This Row],[N.PROCESO]]=0,\"\",VLOOKUP(Tabla3[[#This Row],[N.PROCESO]],Tabla12[],9,FALSE))","v":""},{"$f":"IF(Tabla3[[#This Row],[N.PROCESO]]=0,\"\",VLOOKUP(Tabla3[[#This Row],[N.PROCESO]],Tabla12[],9,FALSE))","v":""},{"$f":"IFERROR(VLOOKUP(Tabla3[[#This Row],[N.PROCESO]],#REF!,2,FALSE),\"\")","v":""},{"$f":"IFERROR(VLOOKUP(Tabla3[[#This Row],[N.PROCESO]],#REF!,6,FALSE),\"\")","v":""},{"$f":"IFERROR(VLOOKUP(Tabla3[[#This Row],[N.PROCESO]],#REF!,7,FALSE),\"\")","v":""},{"$f":"IF(Tabla3[[#This Row],[SENTIDO FALLO]]=\"\",\"\",IF(Tabla3[[#This Row],[SENTIDO FALLO]]=\"DESFAVORABLE\",Tabla3[[#This Row],[FECHA NOTIFICACION SENTENCIA]]+5, \" NO APLICA\"))","v":""},{"$f":"IFERROR(Tabla3[[#This Row],[PROYECTO APELACION ABOGADO]]+2,\"\")","v":""},{"$f":"IF(Tabla3[[#This Row],[SENTIDO FALLO]]=\"\",\"\",IF(Tabla3[[#This Row],[SENTIDO FALLO]]=\"DESFAVORABLE\",Tabla3[[#This Row],[FECHA NOTIFICACION SENTENCIA]]+11, \" NO APLICA\"))","v":""},{"$f":"IFERROR(VLOOKUP(Tabla3[[#This Row],[N.PROCESO]],Tabla13[],2,FALSE),\"\")","v":""},{"$f":"IFERROR(VLOOKUP(Tabla3[[#This Row],[N.PROCESO]],Tabla13[],6,FALSE),\"\")","v":""},{"$f":"IFERROR(VLOOKUP(Tabla3[[#This Row],[N.PROCESO]],Tabla13[],7,FALSE),\"\")","v":""},{"$f":"IF(Tabla3[[#This Row],[SENTIDO FALLO2]]=\"\",\"\",IF(Tabla3[[#This Row],[SENTIDO FALLO2]]=\"DESFAVORABLE\",Tabla3[[#This Row],[FECHA NOTIFICACION SENTENCIA2]]+5,\" NO APLICA\"))","v":""}]
[null,null,null,{"$f":"IFERROR(VLOOKUP(Tabla3[[#This Row],[N.PROCESO]],Tabla16[],2,FALSE),\"\")","v":""},{"$f":"IFERROR(VLOOKUP(Tabla3[[#This Row],[N.PROCESO]],Tabla12[],4,FALSE),\"\")","v":""},{"$f":"IFERROR(VLOOKUP(Tabla3[[#This Row],[N.PROCESO]],Tabla9[],2,FALSE),\"\")","v":""},null,null,null,null,null,null,{"$f":"IF(OR(Tabla3[[#This Row],[AÑO]]=0,Tabla3[[#This Row],[MES]]=0,Tabla3[[#This Row],[DIA]]=0),\"\",CONCATENATE(Tabla3[[#This Row],[AÑO]],\"/\",Tabla3[[#This Row],[MES]],\"/\",Tabla3[[#This Row],[DIA]]))","v":""},{"$f":"IF(Tabla3[[#This Row],[N.PROCESO]]=0,\"\",IFERROR(VLOOKUP(Tabla3[[#This Row],[N.PROCESO]],Tabla17[],2,FALSE),\"Revisar\"))","v":""},{"$f":"IF(Tabla3[[#This Row],[FECHA]]=0,\"\",Tabla3[[#This Row],[FECHA]]+2)","v":""},{"$f":"IF(Tabla3[[#This Row],[FECHA]]=0,\"\",SumarDiasLaborables($C18,$AT18))","v":""},{"$f":"IF(Tabla3[[#This Row],[FECHA]]=0,\"\",SumarDiasLaborables($C18,$AU18))","v":""},{"$f":"IF(Tabla3[[#This Row],[FECHA]]=0,\"\",SumarDiasLaborables($C18,$AV18))","v":""},{"$f":"IF(Tabla3[[#This Row],[N.PROCESO]]=0,\"\",IFERROR(VLOOKUP(Tabla3[[#This Row],[N.PROCESO]],Tabla11[],3,FALSE),\"  S . A  \"))","v":""},{"$f":"IFERROR(VLOOKUP(Tabla3[[#This Row],[N.PROCESO]],Tabla11[],4,FALSE),\"\")","v":""},{"$f":"IFERROR(VLOOKUP(Tabla3[[#This Row],[N.PROCESO]],Tabla11[],5,FALSE),\"\")","v":""},{"$f":"IFERROR(VLOOKUP(Tabla3[[#This Row],[N.PROCESO]],Tabla11[],6,FALSE),\"\")","v":""},{"$f":"IFERROR(VLOOKUP(Tabla3[[#This Row],[N.PROCESO]],Tabla12[],2,FALSE),\"\")","v":""},{"$f":"IF(Tabla3[[#This Row],[N.PROCESO]]=0,\"\",VLOOKUP(Tabla3[[#This Row],[N.PROCESO]],Tabla12[],3,FALSE))","v":""},null,{"$f":"IF(Tabla3[[#This Row],[N.PROCESO]]=0,\"\",VLOOKUP(Tabla3[[#This Row],[N.PROCESO]],Tabla14[],2,FALSE))","v":""},null,null,null,null,null,{"$f":"IF(Tabla3[[#This Row],[N.PROCESO]]=0,\"\",VLOOKUP(Tabla3[[#This Row],[N.PROCESO]],Tabla12[],5,FALSE))","v":""},{"$f":"IF(Tabla3[[#This Row],[N.PROCESO]]=0,\"\",VLOOKUP(Tabla3[[#This Row],[N.PROCESO]],Tabla12[],9,FALSE))","v":""},{"$f":"IF(Tabla3[[#This Row],[N.PROCESO]]=0,\"\",VLOOKUP(Tabla3[[#This Row],[N.PROCESO]],Tabla12[],9,FALSE))","v":""},{"$f":"IFERROR(VLOOKUP(Tabla3[[#This Row],[N.PROCESO]],#REF!,2,FALSE),\"\")","v":""},{"$f":"IFERROR(VLOOKUP(Tabla3[[#This Row],[N.PROCESO]],#REF!,6,FALSE),\"\")","v":""},{"$f":"IFERROR(VLOOKUP(Tabla3[[#This Row],[N.PROCESO]],#REF!,7,FALSE),\"\")","v":""},{"$f":"IF(Tabla3[[#This Row],[SENTIDO FALLO]]=\"\",\"\",IF(Tabla3[[#This Row],[SENTIDO FALLO]]=\"DESFAVORABLE\",Tabla3[[#This Row],[FECHA NOTIFICACION SENTENCIA]]+5, \" NO APLICA\"))","v":""},{"$f":"IFERROR(Tabla3[[#This Row],[PROYECTO APELACION ABOGADO]]+2,\"\")","v":""},{"$f":"IF(Tabla3[[#This Row],[SENTIDO FALLO]]=\"\",\"\",IF(Tabla3[[#This Row],[SENTIDO FALLO]]=\"DESFAVORABLE\",Tabla3[[#This Row],[FECHA NOTIFICACION SENTENCIA]]+11, \" NO APLICA\"))","v":""},{"$f":"IFERROR(VLOOKUP(Tabla3[[#This Row],[N.PROCESO]],Tabla13[],2,FALSE),\"\")","v":""},{"$f":"IFERROR(VLOOKUP(Tabla3[[#This Row],[N.PROCESO]],Tabla13[],6,FALSE),\"\")","v":""},{"$f":"IFERROR(VLOOKUP(Tabla3[[#This Row],[N.PROCESO]],Tabla13[],7,FALSE),\"\")","v":""},{"$f":"IF(Tabla3[[#This Row],[SENTIDO FALLO2]]=\"\",\"\",IF(Tabla3[[#This Row],[SENTIDO FALLO2]]=\"DESFAVORABLE\",Tabla3[[#This Row],[FECHA NOTIFICACION SENTENCIA2]]+5,\" NO APLICA\"))","v":""}]
[null,null,null,{"$f":"IFERROR(VLOOKUP(Tabla3[[#This Row],[N.PROCESO]],Tabla16[],2,FALSE),\"\")","v":""},{"$f":"IFERROR(VLOOKUP(Tabla3[[#This Row],[N.PROCESO]],Tabla12[],4,FALSE),\"\")","v":""},{"$f":"IFERROR(VLOOKUP(Tabla3[[#This Row],[N.PROCESO]],Tabla9[],2,FALSE),\"\")","v":""},null,null,null,null,null,null,{"$f":"IF(OR(Tabla3[[#This Row],[AÑO]]=0,Tabla3[[#This Row],[MES]]=0,Tabla3[[#This Row],[DIA]]=0),\"\",CONCATENATE(Tabla3[[#This Row],[AÑO]],\"/\",Tabla3[[#This Row],[MES]],\"/\",Tabla3[[#This Row],[DIA]]))","v":""},{"$f":"IF(Tabla3[[#This Row],[N.PROCESO]]=0,\"\",IFERROR(VLOOKUP(Tabla3[[#This Row],[N.PROCESO]],Tabla17[],2,FALSE),\"Revisar\"))","v":""},{"$f":"IF(Tabla3[[#This Row],[FECHA]]=0,\"\",Tabla3[[#This Row],[FECHA]]+2)","v":""},{"$f":"IF(Tabla3[[#This Row],[FECHA]]=0,\"\",SumarDiasLaborables($C19,$AT19))","v":""},{"$f":"IF(Tabla3[[#This Row],[FECHA]]=0,\"\",SumarDiasLaborables($C19,$AU19))","v":""},{"$f":"IF(Tabla3[[#This Row],[FECHA]]=0,\"\",SumarDiasLaborables($C19,$AV19))","v":""},{"$f":"IF(Tabla3[[#This Row],[N.PROCESO]]=0,\"\",IFERROR(VLOOKUP(Tabla3[[#This Row],[N.PROCESO]],Tabla11[],3,FALSE),\"  S . A  \"))","v":""},{"$f":"IFERROR(VLOOKUP(Tabla3[[#This Row],[N.PROCESO]],Tabla11[],4,FALSE),\"\")","v":""},{"$f":"IFERROR(VLOOKUP(Tabla3[[#This Row],[N.PROCESO]],Tabla11[],5,FALSE),\"\")","v":""},{"$f":"IFERROR(VLOOKUP(Tabla3[[#This Row],[N.PROCESO]],Tabla11[],6,FALSE),\"\")","v":""},{"$f":"IFERROR(VLOOKUP(Tabla3[[#This Row],[N.PROCESO]],Tabla12[],2,FALSE),\"\")","v":""},{"$f":"IF(Tabla3[[#This Row],[N.PROCESO]]=0,\"\",VLOOKUP(Tabla3[[#This Row],[N.PROCESO]],Tabla12[],3,FALSE))","v":""},null,{"$f":"IF(Tabla3[[#This Row],[N.PROCESO]]=0,\"\",VLOOKUP(Tabla3[[#This Row],[N.PROCESO]],Tabla14[],2,FALSE))","v":""},null,null,null,null,null,{"$f":"IF(Tabla3[[#This Row],[N.PROCESO]]=0,\"\",VLOOKUP(Tabla3[[#This Row],[N.PROCESO]],Tabla12[],5,FALSE))","v":""},{"$f":"IF(Tabla3[[#This Row],[N.PROCESO]]=0,\"\",VLOOKUP(Tabla3[[#This Row],[N.PROCESO]],Tabla12[],9,FALSE))","v":""},{"$f":"IF(Tabla3[[#This Row],[N.PROCESO]]=0,\"\",VLOOKUP(Tabla3[[#This Row],[N.PROCESO]],Tabla12[],9,FALSE))","v":""},{"$f":"IFERROR(VLOOKUP(Tabla3[[#This Row],[N.PROCESO]],#REF!,2,FALSE),\"\")","v":""},{"$f":"IFERROR(VLOOKUP(Tabla3[[#This Row],[N.PROCESO]],#REF!,6,FALSE),\"\")","v":""},{"$f":"IFERROR(VLOOKUP(Tabla3[[#This Row],[N.PROCESO]],#REF!,7,FALSE),\"\")","v":""},{"$f":"IF(Tabla3[[#This Row],[SENTIDO FALLO]]=\"\",\"\",IF(Tabla3[[#This Row],[SENTIDO FALLO]]=\"DESFAVORABLE\",Tabla3[[#This Row],[FECHA NOTIFICACION SENTENCIA]]+5, \" NO APLICA\"))","v":""},{"$f":"IFERROR(Tabla3[[#This Row],[PROYECTO APELACION ABOGADO]]+2,\"\")","v":""},{"$f":"IF(Tabla3[[#This Row],[SENTIDO FALLO]]=\"\",\"\",IF(Tabla3[[#This Row],[SENTIDO FALLO]]=\"DESFAVORABLE\",Tabla3[[#This Row],[FECHA NOTIFICACION SENTENCIA]]+11, \" NO APLICA\"))","v":""},{"$f":"IFERROR(VLOOKUP(Tabla3[[#This Row],[N.PROCESO]],Tabla13[],2,FALSE),\"\")","v":""},{"$f":"IFERROR(VLOOKUP(Tabla3[[#This Row],[N.PROCESO]],Tabla13[],6,FALSE),\"\")","v":""},{"$f":"IFERROR(VLOOKUP(Tabla3[[#This Row],[N.PROCESO]],Tabla13[],7,FALSE),\"\")","v":""},{"$f":"IF(Tabla3[[#This Row],[SENTIDO FALLO2]]=\"\",\"\",IF(Tabla3[[#This Row],[SENTIDO FALLO2]]=\"DESFAVORABLE\",Tabla3[[#This Row],[FECHA NOTIFICACION SENTENCIA2]]+5,\" NO APLICA\"))","v":""}]
[null,null,null,{"$f":"IFERROR(VLOOKUP(Tabla3[[#This Row],[N.PROCESO]],Tabla16[],2,FALSE),\"\")","v":""},{"$f":"IFERROR(VLOOKUP(Tabla3[[#This Row],[N.PROCESO]],Tabla12[],4,FALSE),\"\")","v":""},{"$f":"IFERROR(VLOOKUP(Tabla3[[#This Row],[N.PROCESO]],Tabla9[],2,FALSE),\"\")","v":""},null,null,null,null,null,null,{"$f":"IF(OR(Tabla3[[#This Row],[AÑO]]=0,Tabla3[[#This Row],[MES]]=0,Tabla3[[#This Row],[DIA]]=0),\"\",CONCATENATE(Tabla3[[#This Row],[AÑO]],\"/\",Tabla3[[#This Row],[MES]],\"/\",Tabla3[[#This Row],[DIA]]))","v":""},{"$f":"IF(Tabla3[[#This Row],[N.PROCESO]]=0,\"\",IFERROR(VLOOKUP(Tabla3[[#This Row],[N.PROCESO]],Tabla17[],2,FALSE),\"Revisar\"))","v":""},{"$f":"IF(Tabla3[[#This Row],[FECHA]]=0,\"\",Tabla3[[#This Row],[FECHA]]+2)","v":""},{"$f":"IF(Tabla3[[#This Row],[FECHA]]=0,\"\",SumarDiasLaborables($C20,$AT20))","v":""},{"$f":"IF(Tabla3[[#This Row],[FECHA]]=0,\"\",SumarDiasLaborables($C20,$AU20))","v":""},{"$f":"IF(Tabla3[[#This Row],[FECHA]]=0,\"\",SumarDiasLaborables($C20,$AV20))","v":""},{"$f":"IF(Tabla3[[#This Row],[N.PROCESO]]=0,\"\",IFERROR(VLOOKUP(Tabla3[[#This Row],[N.PROCESO]],Tabla11[],3,FALSE),\"  S . A  \"))","v":""},{"$f":"IFERROR(VLOOKUP(Tabla3[[#This Row],[N.PROCESO]],Tabla11[],4,FALSE),\"\")","v":""},{"$f":"IFERROR(VLOOKUP(Tabla3[[#This Row],[N.PROCESO]],Tabla11[],5,FALSE),\"\")","v":""},{"$f":"IFERROR(VLOOKUP(Tabla3[[#This Row],[N.PROCESO]],Tabla11[],6,FALSE),\"\")","v":""},{"$f":"IFERROR(VLOOKUP(Tabla3[[#This Row],[N.PROCESO]],Tabla12[],2,FALSE),\"\")","v":""},{"$f":"IF(Tabla3[[#This Row],[N.PROCESO]]=0,\"\",VLOOKUP(Tabla3[[#This Row],[N.PROCESO]],Tabla12[],3,FALSE))","v":""},null,{"$f":"IF(Tabla3[[#This Row],[N.PROCESO]]=0,\"\",VLOOKUP(Tabla3[[#This Row],[N.PROCESO]],Tabla14[],2,FALSE))","v":""},null,null,null,null,null,{"$f":"IF(Tabla3[[#This Row],[N.PROCESO]]=0,\"\",VLOOKUP(Tabla3[[#This Row],[N.PROCESO]],Tabla12[],5,FALSE))","v":""},{"$f":"IF(Tabla3[[#This Row],[N.PROCESO]]=0,\"\",VLOOKUP(Tabla3[[#This Row],[N.PROCESO]],Tabla12[],9,FALSE))","v":""},{"$f":"IF(Tabla3[[#This Row],[N.PROCESO]]=0,\"\",VLOOKUP(Tabla3[[#This Row],[N.PROCESO]],Tabla12[],9,FALSE))","v":""},{"$f":"IFERROR(VLOOKUP(Tabla3[[#This Row],[N.PROCESO]],#REF!,2,FALSE),\"\")","v":""},{"$f":"IFERROR(VLOOKUP(Tabla3[[#This Row],[N.PROCESO]],#REF!,6,FALSE),\"\")","v":""},{"$f":"IFERROR(VLOOKUP(Tabla3[[#This Row],[N.PROCESO]],#REF!,7,FALSE),\"\")","v":""},{"$f":"IF(Tabla3[[#This Row],[SENTIDO FALLO]]=\"\",\"\",IF(Tabla3[[#This Row],[SENTIDO FALLO]]=\"DESFAVORABLE\",Tabla3[[#This Row],[FECHA NOTIFICACION SENTENCIA]]+5, \" NO APLICA\"))","v":""},{"$f":"IFERROR(Tabla3[[#This Row],[PROYECTO APELACION ABOGADO]]+2,\"\")","v":""},{"$f":"IF(Tabla3[[#This Row],[SENTIDO FALLO]]=\"\",\"\",IF(Tabla3[[#This Row],[SENTIDO FALLO]]=\"DESFAVORABLE\",Tabla3[[#This Row],[FECHA NOTIFICACION SENTENCIA]]+11, \" NO APLICA\"))","v":""},{"$f":"IFERROR(VLOOKUP(Tabla3[[#This Row],[N.PROCESO]],Tabla13[],2,FALSE),\"\")","v":""},{"$f":"IFERROR(VLOOKUP(Tabla3[[#This Row],[N.PROCESO]],Tabla13[],6,FALSE),\"\")","v":""},{"$f":"IFERROR(VLOOKUP(Tabla3[[#This Row],[N.PROCESO]],Tabla13[],7,FALSE),\"\")","v":""},{"$f":"IF(Tabla3[[#This Row],[SENTIDO FALLO2]]=\"\",\"\",IF(Tabla3[[#This Row],[SENTIDO FALLO2]]=\"DESFAVORABLE\",Tabla3[[#This Row],[FECHA NOTIFICACION SENTENCIA2]]+5,\" NO APLICA\"))","v":""}]
[null,null,null,{"$f":"IFERROR(VLOOKUP(Tabla3[[#This Row],[N.PROCESO]],Tabla16[],2,FALSE),\"\")","v":""},{"$f":"IFERROR(VLOOKUP(Tabla3[[#This Row],[N.PROCESO]],Tabla12[],4,FALSE),\"\")","v":""},{"$f":"IFERROR(VLOOKUP(Tabla3[[#This Row],[N.PROCESO]],Tabla9[],2,FALSE),\"\")","v":""},null,null,null,null,null,null,{"$f":"IF(OR(Tabla3[[#This Row],[AÑO]]=0,Tabla3[[#This Row],[MES]]=0,Tabla3[[#This Row],[DIA]]=0),\"\",CONCATENATE(Tabla3[[#This Row],[AÑO]],\"/\",Tabla3[[#This Row],[MES]],\"/\",Tabla3[[#This Row],[DIA]]))","v":""},{"$f":"IF(Tabla3[[#This Row],[N.PROCESO]]=0,\"\",IFERROR(VLOOKUP(Tabla3[[#This Row],[N.PROCESO]],Tabla17[],2,FALSE),\"Revisar\"))","v":""},{"$f":"IF(Tabla3[[#This Row],[FECHA]]=0,\"\",Tabla3[[#This Row],[FECHA]]+2)","v":""},{"$f":"IF(Tabla3[[#This Row],[FECHA]]=0,\"\",SumarDiasLaborables($C21,$AT21))","v":""},{"$f":"IF(Tabla3[[#This Row],[FECHA]]=0,\"\",SumarDiasLaborables($C21,$AU21))","v":""},{"$f":"IF(Tabla3[[#This Row],[FECHA]]=0,\"\",SumarDiasLaborables($C21,$AV21))","v":""},{"$f":"IF(Tabla3[[#This Row],[N.PROCESO]]=0,\"\",IFERROR(VLOOKUP(Tabla3[[#This Row],[N.PROCESO]],Tabla11[],3,FALSE),\"  S . A  \"))","v":""},{"$f":"IFERROR(VLOOKUP(Tabla3[[#This Row],[N.PROCESO]],Tabla11[],4,FALSE),\"\")","v":""},{"$f":"IFERROR(VLOOKUP(Tabla3[[#This Row],[N.PROCESO]],Tabla11[],5,FALSE),\"\")","v":""},{"$f":"IFERROR(VLOOKUP(Tabla3[[#This Row],[N.PROCESO]],Tabla11[],6,FALSE),\"\")","v":""},{"$f":"IFERROR(VLOOKUP(Tabla3[[#This Row],[N.PROCESO]],Tabla12[],2,FALSE),\"\")","v":""},{"$f":"IF(Tabla3[[#This Row],[N.PROCESO]]=0,\"\",VLOOKUP(Tabla3[[#This Row],[N.PROCESO]],Tabla12[],3,FALSE))","v":""},null,{"$f":"IF(Tabla3[[#This Row],[N.PROCESO]]=0,\"\",VLOOKUP(Tabla3[[#This Row],[N.PROCESO]],Tabla14[],2,FALSE))","v":""},null,null,null,null,null,{"$f":"IF(Tabla3[[#This Row],[N.PROCESO]]=0,\"\",VLOOKUP(Tabla3[[#This Row],[N.PROCESO]],Tabla12[],5,FALSE))","v":""},{"$f":"IF(Tabla3[[#This Row],[N.PROCESO]]=0,\"\",VLOOKUP(Tabla3[[#This Row],[N.PROCESO]],Tabla12[],9,FALSE))","v":""},{"$f":"IF(Tabla3[[#This Row],[N.PROCESO]]=0,\"\",VLOOKUP(Tabla3[[#This Row],[N.PROCESO]],Tabla12[],9,FALSE))","v":""},{"$f":"IFERROR(VLOOKUP(Tabla3[[#This Row],[N.PROCESO]],#REF!,2,FALSE),\"\")","v":""},{"$f":"IFERROR(VLOOKUP(Tabla3[[#This Row],[N.PROCESO]],#REF!,6,FALSE),\"\")","v":""},{"$f":"IFERROR(VLOOKUP(Tabla3[[#This Row],[N.PROCESO]],#REF!,7,FALSE),\"\")","v":""},{"$f":"IF(Tabla3[[#This Row],[SENTIDO FALLO]]=\"\",\"\",IF(Tabla3[[#This Row],[SENTIDO FALLO]]=\"DESFAVORABLE\",Tabla3[[#This Row],[FECHA NOTIFICACION SENTENCIA]]+5, \" NO APLICA\"))","v":""},{"$f":"IFERROR(Tabla3[[#This Row],[PROYECTO APELACION ABOGADO]]+2,\"\")","v":""},{"$f":"IF(Tabla3[[#This Row],[SENTIDO FALLO]]=\"\",\"\",IF(Tabla3[[#This Row],[SENTIDO FALLO]]=\"DESFAVORABLE\",Tabla3[[#This Row],[FECHA NOTIFICACION SENTENCIA]]+11, \" NO APLICA\"))","v":""},{"$f":"IFERROR(VLOOKUP(Tabla3[[#This Row],[N.PROCESO]],Tabla13[],2,FALSE),\"\")","v":""},{"$f":"IFERROR(VLOOKUP(Tabla3[[#This Row],[N.PROCESO]],Tabla13[],6,FALSE),\"\")","v":""},{"$f":"IFERROR(VLOOKUP(Tabla3[[#This Row],[N.PROCESO]],Tabla13[],7,FALSE),\"\")","v":""},{"$f":"IF(Tabla3[[#This Row],[SENTIDO FALLO2]]=\"\",\"\",IF(Tabla3[[#This Row],[SENTIDO FALLO2]]=\"DESFAVORABLE\",Tabla3[[#This Row],[FECHA NOTIFICACION SENTENCIA2]]+5,\" NO APLICA\"))","v":""}]
[null,null,null,{"$f":"IFERROR(VLOOKUP(Tabla3[[#This Row],[N.PROCESO]],Tabla16[],2,FALSE),\"\")","v":""},{"$f":"IFERROR(VLOOKUP(Tabla3[[#This Row],[N.PROCESO]],Tabla12[],4,FALSE),\"\")","v":""},{"$f":"IFERROR(VLOOKUP(Tabla3[[#This Row],[N.PROCESO]],Tabla9[],2,FALSE),\"\")","v":""},null,null,null,null,null,null,{"$f":"IF(OR(Tabla3[[#This Row],[AÑO]]=0,Tabla3[[#This Row],[MES]]=0,Tabla3[[#This Row],[DIA]]=0),\"\",CONCATENATE(Tabla3[[#This Row],[AÑO]],\"/\",Tabla3[[#This Row],[MES]],\"/\",Tabla3[[#This Row],[DIA]]))","v":""},{"$f":"IF(Tabla3[[#This Row],[N.PROCESO]]=0,\"\",IFERROR(VLOOKUP(Tabla3[[#This Row],[N.PROCESO]],Tabla17[],2,FALSE),\"Revisar\"))","v":""},{"$f":"IF(Tabla3[[#This Row],[FECHA]]=0,\"\",Tabla3[[#This Row],[FECHA]]+2)","v":""},{"$f":"IF(Tabla3[[#This Row],[FECHA]]=0,\"\",SumarDiasLaborables($C22,$AT22))","v":""},{"$f":"IF(Tabla3[[#This Row],[FECHA]]=0,\"\",SumarDiasLaborables($C22,$AU22))","v":""},{"$f":"IF(Tabla3[[#This Row],[FECHA]]=0,\"\",SumarDiasLaborables($C22,$AV22))","v":""},{"$f":"IF(Tabla3[[#This Row],[N.PROCESO]]=0,\"\",IFERROR(VLOOKUP(Tabla3[[#This Row],[N.PROCESO]],Tabla11[],3,FALSE),\"  S . A  \"))","v":""},{"$f":"IFERROR(VLOOKUP(Tabla3[[#This Row],[N.PROCESO]],Tabla11[],4,FALSE),\"\")","v":""},{"$f":"IFERROR(VLOOKUP(Tabla3[[#This Row],[N.PROCESO]],Tabla11[],5,FALSE),\"\")","v":""},{"$f":"IFERROR(VLOOKUP(Tabla3[[#This Row],[N.PROCESO]],Tabla11[],6,FALSE),\"\")","v":""},{"$f":"IFERROR(VLOOKUP(Tabla3[[#This Row],[N.PROCESO]],Tabla12[],2,FALSE),\"\")","v":""},{"$f":"IF(Tabla3[[#This Row],[N.PROCESO]]=0,\"\",VLOOKUP(Tabla3[[#This Row],[N.PROCESO]],Tabla12[],3,FALSE))","v":""},null,{"$f":"IF(Tabla3[[#This Row],[N.PROCESO]]=0,\"\",VLOOKUP(Tabla3[[#This Row],[N.PROCESO]],Tabla14[],2,FALSE))","v":""},null,null,null,null,null,{"$f":"IF(Tabla3[[#This Row],[N.PROCESO]]=0,\"\",VLOOKUP(Tabla3[[#This Row],[N.PROCESO]],Tabla12[],5,FALSE))","v":""},{"$f":"IF(Tabla3[[#This Row],[N.PROCESO]]=0,\"\",VLOOKUP(Tabla3[[#This Row],[N.PROCESO]],Tabla12[],9,FALSE))","v":""},{"$f":"IF(Tabla3[[#This Row],[N.PROCESO]]=0,\"\",VLOOKUP(Tabla3[[#This Row],[N.PROCESO]],Tabla12[],9,FALSE))","v":""},{"$f":"IFERROR(VLOOKUP(Tabla3[[#This Row],[N.PROCESO]],#REF!,2,FALSE),\"\")","v":""},{"$f":"IFERROR(VLOOKUP(Tabla3[[#This Row],[N.PROCESO]],#REF!,6,FALSE),\"\")","v":""},{"$f":"IFERROR(VLOOKUP(Tabla3[[#This Row],[N.PROCESO]],#REF!,7,FALSE),\"\")","v":""},{"$f":"IF(Tabla3[[#This Row],[SENTIDO FALLO]]=\"\",\"\",IF(Tabla3[[#This Row],[SENTIDO FALLO]]=\"DESFAVORABLE\",Tabla3[[#This Row],[FECHA NOTIFICACION SENTENCIA]]+5, \" NO APLICA\"))","v":""},{"$f":"IFERROR(Tabla3[[#This Row],[PROYECTO APELACION ABOGADO]]+2,\"\")","v":""},{"$f":"IF(Tabla3[[#This Row],[SENTIDO FALLO]]=\"\",\"\",IF(Tabla3[[#This Row],[SENTIDO FALLO]]=\"DESFAVORABLE\",Tabla3[[#This Row],[FECHA NOTIFICACION SENTENCIA]]+11, \" NO APLICA\"))","v":""},{"$f":"IFERROR(VLOOKUP(Tabla3[[#This Row],[N.PROCESO]],Tabla13[],2,FALSE),\"\")","v":""},{"$f":"IFERROR(VLOOKUP(Tabla3[[#This Row],[N.PROCESO]],Tabla13[],6,FALSE),\"\")","v":""},{"$f":"IFERROR(VLOOKUP(Tabla3[[#This Row],[N.PROCESO]],Tabla13[],7,FALSE),\"\")","v":""},{"$f":"IF(Tabla3[[#This Row],[SENTIDO FALLO2]]=\"\",\"\",IF(Tabla3[[#This Row],[SENTIDO FALLO2]]=\"DESFAVORABLE\",Tabla3[[#This Row],[FECHA NOTIFICACION SENTENCIA2]]+5,\" NO APLICA\"))","v":""}]
[null,null,null,{"$f":"IFERROR(VLOOKUP(Tabla3[[#This Row],[N.PROCESO]],Tabla16[],2,FALSE),\"\")","v":""},{"$f":"IFERROR(VLOOKUP(Tabla3[[#This Row],[N.PROCESO]],Tabla12[],4,FALSE),\"\")","v":""},{"$f":"IFERROR(VLOOKUP(Tabla3[[#This Row],[N.PROCESO]],Tabla9[],2,FALSE),\"\")","v":""},null,null,null,null,null,null,{"$f":"IF(OR(Tabla3[[#This Row],[AÑO]]=0,Tabla3[[#This Row],[MES]]=0,Tabla3[[#This Row],[DIA]]=0),\"\",CONCATENATE(Tabla3[[#This Row],[AÑO]],\"/\",Tabla3[[#This Row],[MES]],\"/\",Tabla3[[#This Row],[DIA]]))","v":""},{"$f":"IF(Tabla3[[#This Row],[N.PROCESO]]=0,\"\",IFERROR(VLOOKUP(Tabla3[[#This Row],[N.PROCESO]],Tabla17[],2,FALSE),\"Revisar\"))","v":""},{"$f":"IF(Tabla3[[#This Row],[FECHA]]=0,\"\",Tabla3[[#This Row],[FECHA]]+2)","v":""},{"$f":"IF(Tabla3[[#This Row],[FECHA]]=0,\"\",SumarDiasLaborables($C23,$AT23))","v":""},{"$f":"IF(Tabla3[[#This Row],[FECHA]]=0,\"\",SumarDiasLaborables($C23,$AU23))","v":""},{"$f":"IF(Tabla3[[#This Row],[FECHA]]=0,\"\",SumarDiasLaborables($C23,$AV23))","v":""},{"$f":"IF(Tabla3[[#This Row],[N.PROCESO]]=0,\"\",IFERROR(VLOOKUP(Tabla3[[#This Row],[N.PROCESO]],Tabla11[],3,FALSE),\"  S . A  \"))","v":""},{"$f":"IFERROR(VLOOKUP(Tabla3[[#This Row],[N.PROCESO]],Tabla11[],4,FALSE),\"\")","v":""},{"$f":"IFERROR(VLOOKUP(Tabla3[[#This Row],[N.PROCESO]],Tabla11[],5,FALSE),\"\")","v":""},{"$f":"IFERROR(VLOOKUP(Tabla3[[#This Row],[N.PROCESO]],Tabla11[],6,FALSE),\"\")","v":""},{"$f":"IFERROR(VLOOKUP(Tabla3[[#This Row],[N.PROCESO]],Tabla12[],2,FALSE),\"\")","v":""},{"$f":"IF(Tabla3[[#This Row],[N.PROCESO]]=0,\"\",VLOOKUP(Tabla3[[#This Row],[N.PROCESO]],Tabla12[],3,FALSE))","v":""},null,{"$f":"IF(Tabla3[[#This Row],[N.PROCESO]]=0,\"\",VLOOKUP(Tabla3[[#This Row],[N.PROCESO]],Tabla14[],2,FALSE))","v":""},null,null,null,null,null,{"$f":"IF(Tabla3[[#This Row],[N.PROCESO]]=0,\"\",VLOOKUP(Tabla3[[#This Row],[N.PROCESO]],Tabla12[],5,FALSE))","v":""},{"$f":"IF(Tabla3[[#This Row],[N.PROCESO]]=0,\"\",VLOOKUP(Tabla3[[#This Row],[N.PROCESO]],Tabla12[],9,FALSE))","v":""},{"$f":"IF(Tabla3[[#This Row],[N.PROCESO]]=0,\"\",VLOOKUP(Tabla3[[#This Row],[N.PROCESO]],Tabla12[],9,FALSE))","v":""},{"$f":"IFERROR(VLOOKUP(Tabla3[[#This Row],[N.PROCESO]],#REF!,2,FALSE),\"\")","v":""},{"$f":"IFERROR(VLOOKUP(Tabla3[[#This Row],[N.PROCESO]],#REF!,6,FALSE),\"\")","v":""},{"$f":"IFERROR(VLOOKUP(Tabla3[[#This Row],[N.PROCESO]],#REF!,7,FALSE),\"\")","v":""},{"$f":"IF(Tabla3[[#This Row],[SENTIDO FALLO]]=\"\",\"\",IF(Tabla3[[#This Row],[SENTIDO FALLO]]=\"DESFAVORABLE\",Tabla3[[#This Row],[FECHA NOTIFICACION SENTENCIA]]+5, \" NO APLICA\"))","v":""},{"$f":"IFERROR(Tabla3[[#This Row],[PROYECTO APELACION ABOGADO]]+2,\"\")","v":""},{"$f":"IF(Tabla3[[#This Row],[SENTIDO FALLO]]=\"\",\"\",IF(Tabla3[[#This Row],[SENTIDO FALLO]]=\"DESFAVORABLE\",Tabla3[[#This Row],[FECHA NOTIFICACION SENTENCIA]]+11, \" NO APLICA\"))","v":""},{"$f":"IFERROR(VLOOKUP(Tabla3[[#This Row],[N.PROCESO]],Tabla13[],2,FALSE),\"\")","v":""},{"$f":"IFERROR(VLOOKUP(Tabla3[[#This Row],[N.PROCESO]],Tabla13[],6,FALSE),\"\")","v":""},{"$f":"IFERROR(VLOOKUP(Tabla3[[#This Row],[N.PROCESO]],Tabla13[],7,FALSE),\"\")","v":""},{"$f":"IF(Tabla3[[#This Row],[SENTIDO FALLO2]]=\"\",\"\",IF(Tabla3[[#This Row],[SENTIDO FALLO2]]=\"DESFAVORABLE\",Tabla3[[#This Row],[FECHA NOTIFICACION SENTENCIA2]]+5,\" NO APLICA\"))","v":""}]
[null,null,null,{"$f":"IFERROR(VLOOKUP(Tabla3[[#This Row],[N.PROCESO]],Tabla16[],2,FALSE),\"\")","v":""},{"$f":"IFERROR(VLOOKUP(Tabla3[[#This Row],[N.PROCESO]],Tabla12[],4,FALSE),\"\")","v":""},{"$f":"IFERROR(VLOOKUP(Tabla3[[#This Row],[N.PROCESO]],Tabla9[],2,FALSE),\"\")","v":""},null,null,null,null,null,null,{"$f":"IF(OR(Tabla3[[#This Row],[AÑO]]=0,Tabla3[[#This Row],[MES]]=0,Tabla3[[#This Row],[DIA]]=0),\"\",CONCATENATE(Tabla3[[#This Row],[AÑO]],\"/\",Tabla3[[#This Row],[MES]],\"/\",Tabla3[[#This Row],[DIA]]))","v":""},{"$f":"IF(Tabla3[[#This Row],[N.PROCESO]]=0,\"\",IFERROR(VLOOKUP(Tabla3[[#This Row],[N.PROCESO]],Tabla17[],2,FALSE),\"Revisar\"))","v":""},{"$f":"IF(Tabla3[[#This Row],[FECHA]]=0,\"\",Tabla3[[#This Row],[FECHA]]+2)","v":""},{"$f":"IF(Tabla3[[#This Row],[FECHA]]=0,\"\",SumarDiasLaborables($C24,$AT24))","v":""},{"$f":"IF(Tabla3[[#This Row],[FECHA]]=0,\"\",SumarDiasLaborables($C24,$AU24))","v":""},{"$f":"IF(Tabla3[[#This Row],[FECHA]]=0,\"\",SumarDiasLaborables($C24,$AV24))","v":""},{"$f":"IF(Tabla3[[#This Row],[N.PROCESO]]=0,\"\",IFERROR(VLOOKUP(Tabla3[[#This Row],[N.PROCESO]],Tabla11[],3,FALSE),\"  S . A  \"))","v":""},{"$f":"IFERROR(VLOOKUP(Tabla3[[#This Row],[N.PROCESO]],Tabla11[],4,FALSE),\"\")","v":""},{"$f":"IFERROR(VLOOKUP(Tabla3[[#This Row],[N.PROCESO]],Tabla11[],5,FALSE),\"\")","v":""},{"$f":"IFERROR(VLOOKUP(Tabla3[[#This Row],[N.PROCESO]],Tabla11[],6,FALSE),\"\")","v":""},{"$f":"IFERROR(VLOOKUP(Tabla3[[#This Row],[N.PROCESO]],Tabla12[],2,FALSE),\"\")","v":""},{"$f":"IF(Tabla3[[#This Row],[N.PROCESO]]=0,\"\",VLOOKUP(Tabla3[[#This Row],[N.PROCESO]],Tabla12[],3,FALSE))","v":""},null,{"$f":"IF(Tabla3[[#This Row],[N.PROCESO]]=0,\"\",VLOOKUP(Tabla3[[#This Row],[N.PROCESO]],Tabla14[],2,FALSE))","v":""},null,null,null,null,null,{"$f":"IF(Tabla3[[#This Row],[N.PROCESO]]=0,\"\",VLOOKUP(Tabla3[[#This Row],[N.PROCESO]],Tabla12[],5,FALSE))","v":""},{"$f":"IF(Tabla3[[#This Row],[N.PROCESO]]=0,\"\",VLOOKUP(Tabla3[[#This Row],[N.PROCESO]],Tabla12[],9,FALSE))","v":""},{"$f":"IF(Tabla3[[#This Row],[N.PROCESO]]=0,\"\",VLOOKUP(Tabla3[[#This Row],[N.PROCESO]],Tabla12[],9,FALSE))","v":""},{"$f":"IFERROR(VLOOKUP(Tabla3[[#This Row],[N.PROCESO]],#REF!,2,FALSE),\"\")","v":""},{"$f":"IFERROR(VLOOKUP(Tabla3[[#This Row],[N.PROCESO]],#REF!,6,FALSE),\"\")","v":""},{"$f":"IFERROR(VLOOKUP(Tabla3[[#This Row],[N.PROCESO]],#REF!,7,FALSE),\"\")","v":""},{"$f":"IF(Tabla3[[#This Row],[SENTIDO FALLO]]=\"\",\"\",IF(Tabla3[[#This Row],[SENTIDO FALLO]]=\"DESFAVORABLE\",Tabla3[[#This Row],[FECHA NOTIFICACION SENTENCIA]]+5, \" NO APLICA\"))","v":""},{"$f":"IFERROR(Tabla3[[#This Row],[PROYECTO APELACION ABOGADO]]+2,\"\")","v":""},{"$f":"IF(Tabla3[[#This Row],[SENTIDO FALLO]]=\"\",\"\",IF(Tabla3[[#This Row],[SENTIDO FALLO]]=\"DESFAVORABLE\",Tabla3[[#This Row],[FECHA NOTIFICACION SENTENCIA]]+11, \" NO APLICA\"))","v":""},{"$f":"IFERROR(VLOOKUP(Tabla3[[#This Row],[N.PROCESO]],Tabla13[],2,FALSE),\"\")","v":""},{"$f":"IFERROR(VLOOKUP(Tabla3[[#This Row],[N.PROCESO]],Tabla13[],6,FALSE),\"\")","v":""},{"$f":"IFERROR(VLOOKUP(Tabla3[[#This Row],[N.PROCESO]],Tabla13[],7,FALSE),\"\")","v":""},{"$f":"IF(Tabla3[[#This Row],[SENTIDO FALLO2]]=\"\",\"\",IF(Tabla3[[#This Row],[SENTIDO FALLO2]]=\"DESFAVORABLE\",Tabla3[[#This Row],[FECHA NOTIFICACION SENTENCIA2]]+5,\" NO APLICA\"))","v":""}]
[null,null,null,{"$f":"IFERROR(VLOOKUP(Tabla3[[#This Row],[N.PROCESO]],Tabla16[],2,FALSE),\"\")","v":""},{"$f":"IFERROR(VLOOKUP(Tabla3[[#This Row],[N.PROCESO]],Tabla12[],4,FALSE),\"\")","v":""},{"$f":"IFERROR(VLOOKUP(Tabla3[[#This Row],[N.PROCESO]],Tabla9[],2,FALSE),\"\")","v":""},null,null,null,null,null,null,{"$f":"IF(OR(Tabla3[[#This Row],[AÑO]]=0,Tabla3[[#This Row],[MES]]=0,Tabla3[[#This Row],[DIA]]=0),\"\",CONCATENATE(Tabla3[[#This Row],[AÑO]],\"/\",Tabla3[[#This Row],[MES]],\"/\",Tabla3[[#This Row],[DIA]]))","v":""},{"$f":"IF(Tabla3[[#This Row],[N.PROCESO]]=0,\"\",IFERROR(VLOOKUP(Tabla3[[#This Row],[N.PROCESO]],Tabla17[],2,FALSE),\"Revisar\"))","v":""},{"$f":"IF(Tabla3[[#This Row],[FECHA]]=0,\"\",Tabla3[[#This Row],[FECHA]]+2)","v":""},{"$f":"IF(Tabla3[[#This Row],[FECHA]]=0,\"\",SumarDiasLaborables($C25,$AT25))","v":""},{"$f":"IF(Tabla3[[#This Row],[FECHA]]=0,\"\",SumarDiasLaborables($C25,$AU25))","v":""},{"$f":"IF(Tabla3[[#This Row],[FECHA]]=0,\"\",SumarDiasLaborables($C25,$AV25))","v":""},{"$f":"IF(Tabla3[[#This Row],[N.PROCESO]]=0,\"\",IFERROR(VLOOKUP(Tabla3[[#This Row],[N.PROCESO]],Tabla11[],3,FALSE),\"  S . A  \"))","v":""},{"$f":"IFERROR(VLOOKUP(Tabla3[[#This Row],[N.PROCESO]],Tabla11[],4,FALSE),\"\")","v":""},{"$f":"IFERROR(VLOOKUP(Tabla3[[#This Row],[N.PROCESO]],Tabla11[],5,FALSE),\"\")","v":""},{"$f":"IFERROR(VLOOKUP(Tabla3[[#This Row],[N.PROCESO]],Tabla11[],6,FALSE),\"\")","v":""},{"$f":"IFERROR(VLOOKUP(Tabla3[[#This Row],[N.PROCESO]],Tabla12[],2,FALSE),\"\")","v":""},{"$f":"IF(Tabla3[[#This Row],[N.PROCESO]]=0,\"\",VLOOKUP(Tabla3[[#This Row],[N.PROCESO]],Tabla12[],3,FALSE))","v":""},null,{"$f":"IF(Tabla3[[#This Row],[N.PROCESO]]=0,\"\",VLOOKUP(Tabla3[[#This Row],[N.PROCESO]],Tabla14[],2,FALSE))","v":""},null,null,null,null,null,{"$f":"IF(Tabla3[[#This Row],[N.PROCESO]]=0,\"\",VLOOKUP(Tabla3[[#This Row],[N.PROCESO]],Tabla12[],5,FALSE))","v":""},{"$f":"IF(Tabla3[[#This Row],[N.PROCESO]]=0,\"\",VLOOKUP(Tabla3[[#This Row],[N.PROCESO]],Tabla12[],9,FALSE))","v":""},{"$f":"IF(Tabla3[[#This Row],[N.PROCESO]]=0,\"\",VLOOKUP(Tabla3[[#This Row],[N.PROCESO]],Tabla12[],9,FALSE))","v":""},{"$f":"IFERROR(VLOOKUP(Tabla3[[#This Row],[N.PROCESO]],#REF!,2,FALSE),\"\")","v":""},{"$f":"IFERROR(VLOOKUP(Tabla3[[#This Row],[N.PROCESO]],#REF!,6,FALSE),\"\")","v":""},{"$f":"IFERROR(VLOOKUP(Tabla3[[#This Row],[N.PROCESO]],#REF!,7,FALSE),\"\")","v":""},{"$f":"IF(Tabla3[[#This Row],[SENTIDO FALLO]]=\"\",\"\",IF(Tabla3[[#This Row],[SENTIDO FALLO]]=\"DESFAVORABLE\",Tabla3[[#This Row],[FECHA NOTIFICACION SENTENCIA]]+5, \" NO APLICA\"))","v":""},{"$f":"IFERROR(Tabla3[[#This Row],[PROYECTO APELACION ABOGADO]]+2,\"\")","v":""},{"$f":"IF(Tabla3[[#This Row],[SENTIDO FALLO]]=\"\",\"\",IF(Tabla3[[#This Row],[SENTIDO FALLO]]=\"DESFAVORABLE\",Tabla3[[#This Row],[FECHA NOTIFICACION SENTENCIA]]+11, \" NO APLICA\"))","v":""},{"$f":"IFERROR(VLOOKUP(Tabla3[[#This Row],[N.PROCESO]],Tabla13[],2,FALSE),\"\")","v":""},{"$f":"IFERROR(VLOOKUP(Tabla3[[#This Row],[N.PROCESO]],Tabla13[],6,FALSE),\"\")","v":""},{"$f":"IFERROR(VLOOKUP(Tabla3[[#This Row],[N.PROCESO]],Tabla13[],7,FALSE),\"\")","v":""},{"$f":"IF(Tabla3[[#This Row],[SENTIDO FALLO2]]=\"\",\"\",IF(Tabla3[[#This Row],[SENTIDO FALLO2]]=\"DESFAVORABLE\",Tabla3[[#This Row],[FECHA NOTIFICACION SENTENCIA2]]+5,\" NO APLICA\"))","v":""}]
[null,null,null,{"$f":"IFERROR(VLOOKUP(Tabla3[[#This Row],[N.PROCESO]],Tabla16[],2,FALSE),\"\")","v":""},{"$f":"IFERROR(VLOOKUP(Tabla3[[#This Row],[N.PROCESO]],Tabla12[],4,FALSE),\"\")","v":""},{"$f":"IFERROR(VLOOKUP(Tabla3[[#This Row],[N.PROCESO]],Tabla9[],2,FALSE),\"\")","v":""},null,null,null,null,null,null,{"$f":"IF(OR(Tabla3[[#This Row],[AÑO]]=0,Tabla3[[#This Row],[MES]]=0,Tabla3[[#This Row],[DIA]]=0),\"\",CONCATENATE(Tabla3[[#This Row],[AÑO]],\"/\",Tabla3[[#This Row],[MES]],\"/\",Tabla3[[#This Row],[DIA]]))","v":""},{"$f":"IF(Tabla3[[#This Row],[N.PROCESO]]=0,\"\",IFERROR(VLOOKUP(Tabla3[[#This Row],[N.PROCESO]],Tabla17[],2,FALSE),\"Revisar\"))","v":""},{"$f":"IF(Tabla3[[#This Row],[FECHA]]=0,\"\",Tabla3[[#This Row],[FECHA]]+2)","v":""},{"$f":"IF(Tabla3[[#This Row],[FECHA]]=0,\"\",SumarDiasLaborables($C26,$AT26))","v":""},{"$f":"IF(Tabla3[[#This Row],[FECHA]]=0,\"\",SumarDiasLaborables($C26,$AU26))","v":""},{"$f":"IF(Tabla3[[#This Row],[FECHA]]=0,\"\",SumarDiasLaborables($C26,$AV26))","v":""},{"$f":"IF(Tabla3[[#This Row],[N.PROCESO]]=0,\"\",IFERROR(VLOOKUP(Tabla3[[#This Row],[N.PROCESO]],Tabla11[],3,FALSE),\"  S . A  \"))","v":""},{"$f":"IFERROR(VLOOKUP(Tabla3[[#This Row],[N.PROCESO]],Tabla11[],4,FALSE),\"\")","v":""},{"$f":"IFERROR(VLOOKUP(Tabla3[[#This Row],[N.PROCESO]],Tabla11[],5,FALSE),\"\")","v":""},{"$f":"IFERROR(VLOOKUP(Tabla3[[#This Row],[N.PROCESO]],Tabla11[],6,FALSE),\"\")","v":""},{"$f":"IFERROR(VLOOKUP(Tabla3[[#This Row],[N.PROCESO]],Tabla12[],2,FALSE),\"\")","v":""},{"$f":"IF(Tabla3[[#This Row],[N.PROCESO]]=0,\"\",VLOOKUP(Tabla3[[#This Row],[N.PROCESO]],Tabla12[],3,FALSE))","v":""},null,{"$f":"IF(Tabla3[[#This Row],[N.PROCESO]]=0,\"\",VLOOKUP(Tabla3[[#This Row],[N.PROCESO]],Tabla14[],2,FALSE))","v":""},null,null,null,null,null,{"$f":"IF(Tabla3[[#This Row],[N.PROCESO]]=0,\"\",VLOOKUP(Tabla3[[#This Row],[N.PROCESO]],Tabla12[],5,FALSE))","v":""},{"$f":"IF(Tabla3[[#This Row],[N.PROCESO]]=0,\"\",VLOOKUP(Tabla3[[#This Row],[N.PROCESO]],Tabla12[],9,FALSE))","v":""},{"$f":"IF(Tabla3[[#This Row],[N.PROCESO]]=0,\"\",VLOOKUP(Tabla3[[#This Row],[N.PROCESO]],Tabla12[],9,FALSE))","v":""},{"$f":"IFERROR(VLOOKUP(Tabla3[[#This Row],[N.PROCESO]],#REF!,2,FALSE),\"\")","v":""},{"$f":"IFERROR(VLOOKUP(Tabla3[[#This Row],[N.PROCESO]],#REF!,6,FALSE),\"\")","v":""},{"$f":"IFERROR(VLOOKUP(Tabla3[[#This Row],[N.PROCESO]],#REF!,7,FALSE),\"\")","v":""},{"$f":"IF(Tabla3[[#This Row],[SENTIDO FALLO]]=\"\",\"\",IF(Tabla3[[#This Row],[SENTIDO FALLO]]=\"DESFAVORABLE\",Tabla3[[#This Row],[FECHA NOTIFICACION SENTENCIA]]+5, \" NO APLICA\"))","v":""},{"$f":"IFERROR(Tabla3[[#This Row],[PROYECTO APELACION ABOGADO]]+2,\"\")","v":""},{"$f":"IF(Tabla3[[#This Row],[SENTIDO FALLO]]=\"\",\"\",IF(Tabla3[[#This Row],[SENTIDO FALLO]]=\"DESFAVORABLE\",Tabla3[[#This Row],[FECHA NOTIFICACION SENTENCIA]]+11, \" NO APLICA\"))","v":""},{"$f":"IFERROR(VLOOKUP(Tabla3[[#This Row],[N.PROCESO]],Tabla13[],2,FALSE),\"\")","v":""},{"$f":"IFERROR(VLOOKUP(Tabla3[[#This Row],[N.PROCESO]],Tabla13[],6,FALSE),\"\")","v":""},{"$f":"IFERROR(VLOOKUP(Tabla3[[#This Row],[N.PROCESO]],Tabla13[],7,FALSE),\"\")","v":""},{"$f":"IF(Tabla3[[#This Row],[SENTIDO FALLO2]]=\"\",\"\",IF(Tabla3[[#This Row],[SENTIDO FALLO2]]=\"DESFAVORABLE\",Tabla3[[#This Row],[FECHA NOTIFICACION SENTENCIA2]]+5,\" NO APLICA\"))","v":""}]

{"sheet":"BD SECUNDARIA","index":3,"n_rows":16,"n_cols":44,"rows_kept":16,"cut":false,"hidden":false,"merged":[[0,1,0,5],[0,42,0,43],[0,39,0,40],[0,36,0,37],[0,28,0,34],[0,17,0,23],[0,7,0,15],[0,25,0,26]]}
[null,"REGISTRO DE APODERADO SIC - DEMANDAS",null,null,null,null,null,"DATOSCOMPLEMENTARIOSSISTEMADETRAMITE",null,null,null,null,null,null,null,null,null,"REGISTRO DE SENTENCIAS EN PRIMERA INSTANCIA",null,null,null,null,null,null,null,"REGISTRO DE MEDIDA CAUTELAR",null,null,"REGISTRO DE SENTENCIAS 2DA INSTANCIA ",null,null,null,null,null,null,null,"RADICADOS ACUMULADOS",null,null,"REGISTRO ID EKOGUI",null,null,"ESTADO DE PROCESO"]
["VALIDACION","No. PROCESO","APODERADO  SIC ACTUAL","DELEGATURA O DEPENDENCIA","ASUNTOS","VALOR PRETENSIÓN","VALIDACION 2","No.PROCESO","EXPEDIENTE ADMINISTRATIVO","ACTOS DEMANDADOS","RADICADO SIC- PADRE","ASUNTO COBRO COACTIVO No.","AÑO","MES","DIA","FECHA MEMORANDO DE  NOTIFICACIÓN A DEPENDENCIAS",null,"NUMERO DE RPOCESO","INSTANCIA","AÑO","MES","DIA","FECHA NOTIFICACION SENTENCIA","SENTIDO FALLO",null,"No. PROCESO","DECISIÓN DE LA SUSPENSIÓN ",null,"No. PROCESO","SENTENCIA 2DA INSTANCIA","AÑO","MES","DIA","FECHA NOTIFICACION SENTENCIA","SENTIDO FALLO",null,"No. PROCESO","RADICADOSIC-ACUMULADOS2",null,"NO. PROCESO","ID EKOGUI",null,"PROCESO","ESTADO"]
[{"$f":"VLOOKUP(B3,Tabla3[[N.PROCESO]:[DESPACHO DE ORIGEN]],1,FALSE)","v":{"$error":"#N/A"}},null,null,null,null,null,{"$f":"VLOOKUP(Tabla12[[#This Row],[No.PROCESO]],Tabla3[[N.PROCESO]:[DESPACHO DE ORIGEN]],1,FALSE)","v":{"$error":"#N/A"}},null,null,null,null,null,null,null,null,{"$f":"CONCATENATE(Tabla12[[#This Row],[DIA]],\"/\",Tabla12[[#This Row],[MES]],\"/\",Tabla12[[#This Row],[AÑO]])","v":"//"},null,null,null,null,null,null,{"$f":"CONCATENATE(Tabla10[[#This Row],[DIA]],\"/\",Tabla10[[#This Row],[MES]],\"/\",Tabla10[[#This Row],[AÑO]])","v":"//"},null,null,null,null,null,null,null,null,null,null,{"$f":"CONCATENATE($AG3,\"/\",$AF3,\"/\",$AE3)","v":"//"}]
[{"$f":"VLOOKUP(B4,Tabla3[[N.PROCESO]:[DESPACHO DE ORIGEN]],1,FALSE)","v":{"$error":"#N/A"}},null,null,null,null,null,{"$f":"VLOOKUP(Tabla12[[#This Row],[No.PROCESO]],Tabla3[[N.PROCESO]:[DESPACHO DE ORIGEN]],1,FALSE)","v":{"$error":"#N/A"}},null,null,null,null,null,null,null,null,{"$f":"CONCATENATE(Tabla12[[#This Row],[DIA]],\"/\",Tabla12[[#This Row],[MES]],\"/\",Tabla12[[#This Row],[AÑO]])","v":"//"},null,null,null,null,null,null,{"$f":"CONCATENATE(Tabla10[[#This Row],[DIA]],\"/\",Tabla10[[#This Row],[MES]],\"/\",Tabla10[[#This Row],[AÑO]])","v":"//"},null,null,null,null,null,null,null,null,null,null,{"$f":"CONCATENATE($AG4,\"/\",$AF4,\"/\",$AE4)","v":"//"}]
[{"$f":"VLOOKUP(B5,Tabla3[[N.PROCESO]:[DESPACHO DE ORIGEN]],1,FALSE)","v":{"$error":"#N/A"}},null,null,null,null,null,{"$f":"VLOOKUP(Tabla12[[#This Row],[No.PROCESO]],Tabla3[[N.PROCESO]:[DESPACHO DE ORIGEN]],1,FALSE)","v":{"$error":"#N/A"}},null,null,null,null,null,null,null,null,{"$f":"CONCATENATE(Tabla12[[#This Row],[DIA]],\"/\",Tabla12[[#This Row],[MES]],\"/\",Tabla12[[#This Row],[AÑO]])","v":"//"},null,null,null,null,null,null,{"$f":"CONCATENATE(Tabla10[[#This Row],[DIA]],\"/\",Tabla10[[#This Row],[MES]],\"/\",Tabla10[[#This Row],[AÑO]])","v":"//"},null,null,null,null,null,null,null,null,null,null,"//"]
[{"$f":"VLOOKUP(B6,Tabla3[[N.PROCESO]:[DESPACHO DE ORIGEN]],1,FALSE)","v":{"$error":"#N/A"}},null,null,null,null,null,{"$f":"VLOOKUP(Tabla12[[#This Row],[No.PROCESO]],Tabla3[[N.PROCESO]:[DESPACHO DE ORIGEN]],1,FALSE)","v":{"$error":"#N/A"}},null,null,null,null,null,null,null,null,{"$f":"CONCATENATE(Tabla12[[#This Row],[DIA]],\"/\",Tabla12[[#This Row],[MES]],\"/\",Tabla12[[#This Row],[AÑO]])","v":"//"},null,null,null,null,null,null,{"$f":"CONCATENATE(Tabla10[[#This Row],[DIA]],\"/\",Tabla10[[#This Row],[MES]],\"/\",Tabla10[[#This Row],[AÑO]])","v":"//"},null,null,null,null,null,null,null,null,null,null,"//"]
[{"$f":"VLOOKUP(B7,Tabla3[[N.PROCESO]:[DESPACHO DE ORIGEN]],1,FALSE)","v":{"$error":"#N/A"}},null,null,null,null,null,{"$f":"VLOOKUP(Tabla12[[#This Row],[No.PROCESO]],Tabla3[[N.PROCESO]:[DESPACHO DE ORIGEN]],1,FALSE)","v":{"$error":"#N/A"}},null,null,null,null,null,null,null,null,{"$f":"CONCATENATE(Tabla12[[#This Row],[DIA]],\"/\",Tabla12[[#This Row],[MES]],\"/\",Tabla12[[#This Row],[AÑO]])","v":"//"},null,null,null,null,null,null,{"$f":"CONCATENATE(Tabla10[[#This Row],[DIA]],\"/\",Tabla10[[#This Row],[MES]],\"/\",Tabla10[[#This Row],[AÑO]])","v":"//"},null,null,null,null,null,null,null,null,null,null,"//"]
[{"$f":"VLOOKUP(B8,Tabla3[[N.PROCESO]:[DESPACHO DE ORIGEN]],1,FALSE)","v":{"$error":"#N/A"}},null,null,null,null,null,{"$f":"VLOOKUP(Tabla12[[#This Row],[No.PROCESO]],Tabla3[[N.PROCESO]:[DESPACHO DE ORIGEN]],1,FALSE)","v":{"$error":"#N/A"}},null,null,null,null,null,null,null,null,{"$f":"CONCATENATE(Tabla12[[#This Row],[DIA]],\"/\",Tabla12[[#This Row],[MES]],\"/\",Tabla12[[#This Row],[AÑO]])","v":"//"},null,null,null,null,null,null,{"$f":"CONCATENATE(Tabla10[[#This Row],[DIA]],\"/\",Tabla10[[#This Row],[MES]],\"/\",Tabla10[[#This Row],[AÑO]])","v":"//"},null,null,null,null,null,null,null,null,null,null,"//"]
[{"$f":"VLOOKUP(B9,Tabla3[[N.PROCESO]:[DESPACHO DE ORIGEN]],1,FALSE)","v":{"$error":"#N/A"}},null,null,null,null,null,{"$f":"VLOOKUP(Tabla12[[#This Row],[No.PROCESO]],Tabla3[[N.PROCESO]:[DESPACHO DE ORIGEN]],1,FALSE)","v":{"$error":"#N/A"}},null,null,null,null,null,null,null,null,{"$f":"CONCATENATE(Tabla12[[#This Row],[DIA]],\"/\",Tabla12[[#This Row],[MES]],\"/\",Tabla12[[#This Row],[AÑO]])","v":"//"},null,null,null,null,null,null,{"$f":"CONCATENATE(Tabla10[[#This Row],[DIA]],\"/\",Tabla10[[#This Row],[MES]],\"/\",Tabla10[[#This Row],[AÑO]])","v":"//"},null,null,null,null,null,null,null,null,null,null,"//"]
[{"$f":"VLOOKUP(B10,Tabla3[[N.PROCESO]:[DESPACHO DE ORIGEN]],1,FALSE)","v":{"$error":"#N/A"}},null,null,null,null,null,{"$f":"VLOOKUP(Tabla12[[#This Row],[No.PROCESO]],Tabla3[[N.PROCESO]:[DESPACHO DE ORIGEN]],1,FALSE)","v":{"$error":"#N/A"}},null,null,null,null,null,null,null,null,{"$f":"CONCATENATE(Tabla12[[#This Row],[DIA]],\"/\",Tabla12[[#This Row],[MES]],\"/\",Tabla12[[#This Row],[AÑO]])","v":"//"},null,null,null,null,null,null,{"$f":"CONCATENATE(Tabla10[[#This Row],[DIA]],\"/\",Tabla10[[#This Row],[MES]],\"/\",Tabla10[[#This Row],[AÑO]])","v":"//"},null,null,null,null,null,null,null,null,null,null,"//"]
[{"$f":"VLOOKUP(B11,Tabla3[[N.PROCESO]:[DESPACHO DE ORIGEN]],1,FALSE)","v":{"$error":"#N/A"}},null,null,null,null,null,{"$f":"VLOOKUP(Tabla12[[#This Row],[No.PROCESO]],Tabla3[[N.PROCESO]:[DESPACHO DE ORIGEN]],1,FALSE)","v":{"$error":"#N/A"}},null,null,null,null,null,null,null,null,{"$f":"CONCATENATE(Tabla12[[#This Row],[DIA]],\"/\",Tabla12[[#This Row],[MES]],\"/\",Tabla12[[#This Row],[AÑO]])","v":"//"},null,null,null,null,null,null,{"$f":"CONCATENATE(Tabla10[[#This Row],[DIA]],\"/\",Tabla10[[#This Row],[MES]],\"/\",Tabla10[[#This Row],[AÑO]])","v":"//"},null,null,null,null,null,null,null,null,null,null,"//"]
[{"$f":"VLOOKUP(B12,Tabla3[[N.PROCESO]:[DESPACHO DE ORIGEN]],1,FALSE)","v":{"$error":"#N/A"}},null,null,null,null,null,{"$f":"VLOOKUP(Tabla12[[#This Row],[No.PROCESO]],Tabla3[[N.PROCESO]:[DESPACHO DE ORIGEN]],1,FALSE)","v":{"$error":"#N/A"}},null,null,null,null,null,null,null,null,{"$f":"CONCATENATE(Tabla12[[#This Row],[DIA]],\"/\",Tabla12[[#This Row],[MES]],\"/\",Tabla12[[#This Row],[AÑO]])","v":"//"},null,null,null,null,null,null,{"$f":"CONCATENATE(Tabla10[[#This Row],[DIA]],\"/\",Tabla10[[#This Row],[MES]],\"/\",Tabla10[[#This Row],[AÑO]])","v":"//"},null,null,null,null,null,null,null,null,null,null,"//"]
[{"$f":"VLOOKUP(B13,Tabla3[[N.PROCESO]:[DESPACHO DE ORIGEN]],1,FALSE)","v":{"$error":"#N/A"}},null,null,null,null,null,{"$f":"VLOOKUP(Tabla12[[#This Row],[No.PROCESO]],Tabla3[[N.PROCESO]:[DESPACHO DE ORIGEN]],1,FALSE)","v":{"$error":"#N/A"}},null,null,null,null,null,null,null,null,{"$f":"CONCATENATE(Tabla12[[#This Row],[DIA]],\"/\",Tabla12[[#This Row],[MES]],\"/\",Tabla12[[#This Row],[AÑO]])","v":"//"},null,null,null,null,null,null,{"$f":"CONCATENATE(Tabla10[[#This Row],[DIA]],\"/\",Tabla10[[#This Row],[MES]],\"/\",Tabla10[[#This Row],[AÑO]])","v":"//"},null,null,null,null,null,null,null,null,null,null,"//"]
[null,null,null,null,null,null,null,null,null,null,null,null,null,null,null,null,null,null,null,null,null,null,{"$f":"CONCATENATE(Tabla10[[#This Row],[DIA]],\"/\",Tabla10[[#This Row],[MES]],\"/\",Tabla10[[#This Row],[AÑO]])","v":"//"},null,null,null,null,null,null,null,null,null,null,"//"]
[null,null,null,null,null,null,null,null,null,null,null,null,null,null,null,null,null,null,null,null,null,null,{"$f":"CONCATENATE(Tabla10[[#This Row],[DIA]],\"/\",Tabla10[[#This Row],[MES]],\"/\",Tabla10[[#This Row],[AÑO]])","v":"//"},null,null,null,null,null,null,null,null,null,null,"//"]
[null,null,null,null,null,null,null,null,null,null,null,null,null,null,null,null,null,null,null,null,null,null,null,null,null,null,null,null,null,null,null,null,null,"//"]

{"sheet":"BD D-806","index":4,"n_rows":3,"n_cols":19,"rows_kept":3,"cut":false,"hidden":false,"merged":[[0,3,0,10]]}
[null,null,null,"DEMANDAS NOTIFICADAS POR DECRETO 806"]
[]
["TIPO DE DEMANDA","TIPO DE ACCIÓN","FECHA NOTIFICACION","No. PROCESO","DESPACHO ENVIADO","TIPO DE NOTIFICACION","DEMANDADA LA SIC","VINCULADA LA SIC","DEMANDANTE","IDENTIFICACIÓN","VINCULADOS","MEDIDA CAUTELAR","Expediente Administrativo","RESOLUCIONES DEMANDADAS","ASUNTO CORREO","ADMITIDO","RADICADO SIC","APODERADO  SIC ACTUAL","DELEGATURA O DEPENDENCIA"]

{"sheet":"PLANTILLA","index":5,"n_rows":114,"n_cols":8,"rows_kept":114,"cut":false,"hidden":true,"merged":[[3,0,3,2]]}
[]
[]
[]
["TIPOS DE DEMANDAS",null,null,null,null,"SIC DEMANDANTE"]
["ACCION_DE_CUMPLIMIENTO","ACCION_DE_GRUPO_y_POPULAR","PROCESOS_JUDICIALES_ORDINARIOS","INCONSTITUCIONAL",null,"SI",null,"FISICA"]
["Acción de Cumplimiento","Acción de Grupo","Nulidad y Restablecimiento del Derecho","ACCION DE INCONSTITUCIONALIDAD",null,"NO",null,"CORREO CERTIFICADO"]
[null,"Acción de Popular","Nulidad y Restablecimiento del Derecho Laboral",null,null,null,null,"CORREO ELECTRONICO"]
[null,null,"Nulidad Absoluta",null,"SENTENCIAS","FAVORABLE"]
[null,null,"Nulidad Simple",null,null,"DESFAVORABLE"]
[null,null,"Nulidad Relativa  (PI)",null,null,"DEFINITIVO"]
[null,null,"Reparacion Directa",null,null,"DESISTIMIENTO"]
[null,null,"Ordinario Laboral",null,"MEDIDA CAUTELAS","APROBADO",null,"SI"]
[null,null,"Accion de Repeticion",null,null,"DENEGADO",null,"NO"]
[null,null,"Controversias Contractuales",null,null,null,null,"UNICA INSTANCIA"]
[null,null,"Verbal"]
[null,null,"Ejecutivo"]
["DELEGATURA",null,"NULIDAD ELECTORAL",null,"ASUNTOS"]
["Proteccion de Datos Personales",null,"APODERADOS SIC",null,"Consumidor"]
["Proteccion del Consumidor",null,"ABOGADO",null,"Comunicaciones"]
["Proteccion de la Competencia",null,"ABOGADO",null,"Servicios Postales",null,null,"CONSEJO DE ESTADO"]
["Propiedad Industrial ",null,"ABOGADO",null,"Integraciones Empresariales",null,null,"CORTE SUPREMA DE JUSTICIA"]
["Reglamentos Tecnicos y Metrologia Legal",null,"ABOGADO",null,"Practicas Restrictivas",null,null,"TRIBUNAL"]
["Asuntos Jurisdiccionales",null,"ABOGADO",null,"Colusiones",null,null,"JUZGADO"]
["Secretaria General",null,"ABOGADO",null,"Camaras de Comercio"]
["Cobro Coactivo",null,"ABOGADO",null,"Reglamentos"]
["Sin Delegatura - General",null,"ABOGADO",null,"Preempacados"]
[null,null,"ABOGADO",null,"Control de precios"]
[null,null,"ABOGADO",null,"Competencia Desleal"]
[null,null,"ABOGADO",null,"Defensa del Consumidor - Jurisdiccional",null,null,"PRIMERA INSTANCIA"]
[null,null,"ABOGADO",null,"Verificación Cumplimiento  - Jurisdiccional",null,null,"SEGUNDA INSTANCIA"]
[null,null,"ABOGADO",null,"Signos Distintivos",null,null,"UNICA INSTANCIA "]
[null,null,"ABOGADO",null,"Nuevas Creaciones",null,null,"POR CONCILIACION"]
[null,null,"ABOGADO",null,"Laboral "]
[null,null,"ABOGADO",null,"Contratos"]
["TIPO DE NOTIFICACION",null,"ABOGADO",null,"Disciplinarios"]
["AUTO ADMISORIO ",null,"ABOGADO",null,"Captadoras"]
["AVISO DECRETO 806",null,"ABOGADO",null,"Contrato Realidad"]
[null,null,null,null,"Otros"]
[null,null,null,null,"Cobro Coactivo"]
[null,null,null,null,"Datos Personales"]
[null,null,null,null,"Marcas"]
[null,null,null,null,"Suspension Provisional"]
[null,null,null,null,"Patentes"]
[1991]
[1992]
[1993]
[1994]
[1995]
[1996]
[1997]
[1998]
[1999]
[2000,"ENERO"]
[2001,"FEBRERO"]
[2002,"MARZO"]
[2003,"ABRIL"]
[2004,"MAYO"]
[2005,"JUNIO"]
[2006,"JULIO"]
[2007,"AGOSTO"]
[2008,"SEPTIEMBRE"]
[2009,"OCTUBRE"]
[2010,"NOVIEMBRE"]
[2011,"DICIEMBRE"]
[2012]
[2013]
[2014]
[2015]
[2016]
[2017]
[2018]
[2019]
[2020]
[2021]
[2022]
[2023]
[2024]
[]
[]
[]
[]
[]
[]
[null,1]
[null,2]
[null,3]
[null,4]
[null,5]
[null,6]
[null,7]
[null,8]
[null,9]
[null,10]
[null,11]
[null,12]
[null,13]
[null,14]
[null,15]
[null,16]
[null,17]
[null,18]
[null,19]
[null,20]
[null,21]
[null,22]
[null,23]
[null,24]
[null,25]
[null,26]
[null,27]
[null,28]
[null,29]
[null,30]
[null,31]